{"text_format":"1","workbook":"xlsx","n_sheets":7,"sheets":["入力用シート","請求書","様式1号","別紙1-1","別紙1-2","別紙2","集計用（確認不要）"],"not_rendered":{"charts":0,"images":1,"macros":1,"external_links":1,"defined_names":17,"comments":3,"pivot_tables":0},"unopened":[],"bounds":{"document_bytes":16777216,"sheet_cells":100000,"rows_first":2000,"rows_last":500,"rows_between":2000,"halvings":0,"cell_chars":16384,"cell_head_chars":4096},"cells_cut":0,"cells_raw":0,"read":"whole","date_system":"1900"}

{"sheet":"入力用シート","index":0,"n_rows":539,"n_cols":22,"rows_kept":539,"cut":false,"hidden":false,"merged":[[7,1,7,2],[8,1,8,2],[11,1,11,2],[11,3,11,6],[9,3,9,6],[30,3,30,5],[22,1,22,2],[18,3,18,6],[26,1,26,2],[21,3,21,6],[19,3,19,6],[26,3,26,5],[22,3,22,6],[20,3,20,6],[29,1,29,2],[27,1,27,2],[29,3,29,5],[32,0,32,12],[4,17,4,18],[2,17,2,18],[10,3,10,6],[4,3,4,5],[7,3,7,6],[8,3,8,6],[4,1,4,2],[21,1,21,2],[18,1,18,2],[19,1,19,2],[20,1,20,2],[9,1,9,2],[10,1,10,2],[30,1,30,2],[27,3,27,5]]}
[null,"令和８年度乳幼児子育て応援事業に係る事業完了報告について"]
[null,null,null,null,null,null,null,null,null,null,null,null,null,"表示しない"]
["①","施設番号を入力してください。",null,null,null,null,null,null,null,null,null,null,null,null,null,"（受託者所在地）","（受託団体名称）","（受託代表者名）"]
[null,null,null,null,null,null,null,null,null,null,null,null,null,"施設番号","施設名称","法人住所","法人名","代表者役職","代表者氏名",null,"委任状"]
[null,"施設番号"]
[null,null,null,null,null,null,null,null,null,null,null,null,null,1,"芦屋こばと保育園","芦屋市若宮町3-17","（福）芦屋こばと福祉会","理事長","小西　理恵子",null," ","ある"]
[null,null,null,null,null,null,null,null,null,null,null,null,null,2,"幼保連携型認定こども園山手夢","芦屋市東芦屋町6番10号","（福）夢工房　","理事長","滝澤　功治",null," ","ない"]
[null,"実施施設名",null,{"$f":"IF($D$5=\"\",0,VLOOKUP($D$5,$N$6:$S$535,2,0))","v":0},{"$f":"IF(#REF!=\"\",0,VLOOKUP(#REF!,$N$6:$AE$535,2,0))","v":{"$error":"#REF!"}},null,{"$f":"IF(#REF!=\"\",0,VLOOKUP(#REF!,$N$6:$AE$535,2,0))","v":{"$error":"#REF!"}},null,null,null,null,null,null,3,"風の子保育園","伊丹市西野5丁目309-2","（福）風の子会　","理事長","村山　雅子",null," "]
[null,"受託団体名称",null,{"$f":"IF($D$5=\"\",0,VLOOKUP($D$5,$N$6:$S$535,4,0))","v":0},{"$f":"IF(#REF!=\"\",0,VLOOKUP(#REF!,$N$6:$AE$535,2,0))","v":{"$error":"#REF!"}},null,{"$f":"IF(#REF!=\"\",0,VLOOKUP(#REF!,$N$6:$AE$535,2,0))","v":{"$error":"#REF!"}},null,null,null,null,null,null,4,"あひる保育園","宝塚市安倉西3丁目1番7号","（福）あひる福祉会　あひる保育園","理事長","脇田　浩美",null," "]
[null,"受託代表者役職名",null,{"$f":"IF($D$5=\"\",0,VLOOKUP($D$5,$N$6:$S$535,5,0))","v":0},{"$f":"IF(#REF!=\"\",0,VLOOKUP(#REF!,$N$6:$AE$535,2,0))","v":{"$error":"#REF!"}},null,null,null,null,null,null,null,null,5,"宝塚さくら保育園","宝塚市高松町13-2","（福）宝塚さくら福祉会　宝塚さくら保育園","理事長","和田　縉市朗",null," "]
[null,"受託代表者氏名",null,{"$f":"IF($D$5=\"\",0,VLOOKUP($D$5,$N$6:$AE$535,6,0))","v":0},null,{"$f":"IF($D$5=\"\",0,VLOOKUP($D$5,$N$6:$AE$535,6,0))","v":0},null,null,null,null,null,null,null,6,"やまぼうし保育園","宝塚市中筋6丁目16-13","（福）萬年青友の会　やまぼうし保育園","理事長","三重野　宗隆",null," "]
[null,"受託者所在地",null,{"$f":"IF($D$5=\"\",0,VLOOKUP($D$5,$N$6:$S$535,3,0))","v":0},null,null,null,null,null,null,null,null,null,7,"なかよし保育園","豊中市寺内1-1-10","（福）愛和会　","理事長","髙岡　秀幸",null," "]
[null,null,null,null,null,null,null,null,null,null,null,null,null,8,"わかばのもり保育園","宝塚市山本西1丁目4番1号","（福）サン福祉会　わかばのもり保育園","理事長","山田　愼治",null," "]
["②","上記表に表示された実施施設名、受託団体名称・代表者職氏名・所在地に誤りがあるかないか選択してください。",null,null,null,null,null,null,null,null,null,null,null,9,"逆瀬川あゆみ保育園","静岡県浜松市中央区元城町218-26","（福）聖隷福祉事業団　逆瀬川あゆみ保育園","理事長","青木　善治",null," "]
[null,"修正がある場合は、下表に正しい情報を全て記載して下さい。（１項目だけ修正する場合でも、全項目に入力してください。）",null,null,null,null,null,null,null,null,null,null,null,10,"御殿山あゆみ保育園","静岡県浜松市中央区元城町218-26","（福）聖隷福祉事業団　御殿山あゆみ保育園","理事長","青木　善治",null," "]
[null,null,null,null,null,null,null,null,null,null,null,null,null,11,"宝塚ひよこ保育園","宝塚市美座2丁目5番7号","（福）宝塚ひよこ福祉会　宝塚ひよこ保育園","理事長","國重　真由美",null," "]
[null,null,"誤りが",null,{"$f":"IF($D$17=\"\",\"←誤りがあるかないか選択してください！\",\"\")","v":"←誤りがあるかないか選択してください！"},null,null,null,null,null,null,null,null,12,"川西みらいのもり保育園","川西市萩原台西1-299-3","（福）光会","理事長","福本　礼",null," "]
[null,null,null,null,null,{"$f":"IF($D$17=\"ある\",\"下表の全項目に正しい情報を手入力してください。\",\"\")","v":""},null,null,null,null,null,null,null,13,"つくしんぼ保育所","川西市大和東3-1-4","（特非）つくしんぼ保育所","理事長","光永　冨美江",null," "]
[null,"実施施設名",null,null,null,null,null,null,null,null,null,null,null,14,"畦野こどもの里保育園","川西市東畦野1-18-32","（福）東谷あゆみ会　","理事長","穗積　富美子",null," "]
[null,"受託団体名称",null,null,null,null,null,null,null,null,null,null,null,15,"幼保連携型認定こども園ゆうかりフレンズ","三田市狭間が丘2丁目20番地","（福）北摂福祉会　","理事長","伊地知　智子","○","④ 委任状が必要です。兵庫県保育協会のHPから様式をダウンロードして、押印の上、兵庫県保育協会あて郵送してください。"]
[null,"受託代表者役職名",null,null,null,null,null,null,null,null,null,null,null,16,"あいの保育園","三田市下相野薬師尾1460番地1","（福）三翠会","理事長","上西　真一",null," "]
[null,"受託代表者氏名",null,null,null,null,null,null,null,null,null,null,null,17,"湊川短期大学付属キッズポート保育園","三田市四ツ辻1430","（学）湊川相野学園","理事長","浅井　祐子","○","④ 委任状が必要です。兵庫県保育協会のHPから様式をダウンロードして、押印の上、兵庫県保育協会あて郵送してください。"]
[null,"受託者所在地",null,null,null,null,null,null,null,null,null,null,null,18,"認定こども園星児園 七夕","尼崎市神田北通1丁目2番地","（福）あかね","理事長","松本　真希子",null," "]
[null,null,null,null,null,null,null,null,null,null,null,null,null,19,"幼保連携型認定こども園ゆき保育園","加古川市志方町投松147番地","（福）ゆき保育園","理事長","寺島　文泰",null," "]
["③","以下項目を入力してください。",null,null,null,null,null,null,"　",null,null,null,null,20,"都台こども園","加古川市上荘町都染314-1","（福）都台福祉会","理事長","藤池　滋実",null," "]
[null,null,null,null,null,null,null,null,null,null,null,null,null,21,"宝殿保育園","加古川市東神吉町西井ノ口794-4","（福）宝殿保育園","理事長","長濱　晋介",null," "]
[null,"発行責任者名",null,"電　話　番　号",null,null,"メールアドレス",null,null,null,null,null,null,22,"日岡保育園","加古川市加古川町大野443-3","（福）日岡福祉会　","理事長","高木　豊子",null," "]
[null,null,null,null,null,null,null,null,null,null,null,null,null,23,"幼保連携型認定こども園トベラこども園","加古川市平岡町高畑621-3","（福）トベラ福祉会","理事長","竹内　千鶴子",null," "]
[null,null,null,null,null,null,null,null,null,null,null,null,null,24,"あかり保育園","加古川市山手1丁目19-5","（福）あかり福祉会　あかり保育園","理事長","磯野　直子",null," "]
[null,"担当者名",null,"電　話　番　号",null,null,"メールアドレス",null,null,null,null,null,null,25,"あいあい保育園","加古川市野口町北野41番地の1","（福）愛々福祉会　あいあい保育園","理事長","中尾　和彦",null," "]
[null,null,null,null,null,null,null,null,null,null,null,null,null,26,"幼保連携型認定こども園ピュアキューピットこども園","加古郡播磨町北本荘6丁目9番11号","（福）キューピット福祉会　","理事長","堀井　桂子",null," "]
[null,null,null,null,null,null,null,null,null,null,null,null,null,27,"加古川ひまわり保育園","加古川市加古川町溝之口754","（福）加古川ひまわり福祉会","理事長","髙橋　照雄",null," "]
[{"$f":"VLOOKUP(D5,N6:U534,8,0)","v":{"$error":"#N/A"}},null,null,null,null,null,null,null,null,null,null,null,null,28,"みのりヶ丘保育園","加古川市加古川町美乃利164番地4","（福）東播福祉会　みのりヶ丘保育園","理事長","今井　智子",null," "]
[null,null,null,null,null,null,null,null,null,null,null,null,null,29,"はとのさと保育園","加古川市加古川町南備後319番地","（福）はとのさと福祉会","理事長","尾野　義彦",null," "]
[null,null,null,null,null,null,null,null,null,null,null,null,null,30,"美保里こども園","高砂市美保里13番1号","（福）美保里福祉会","理事長","西山　雅子",null," "]
[null,null,null,null,null,null,null,null,null,null,null,null,null,31,"聖パウロこども園","高砂市阿弥陀町魚橋686番地","（福）日本聖公会　高砂福祉会","理事長","坂牛　裕","○","④ 委任状が必要です。兵庫県保育協会のHPから様式をダウンロードして、押印の上、兵庫県保育協会あて郵送してください。"]
[null,null,null,null,null,null,null,null,null,null,null,null,null,32,"さいしゅうじこども園","高砂市伊保崎5丁目7の1","（福）雙樹会","理事長","暉峻　隆涉",null," "]
[null,null,null,null,null,null,null,null,null,null,null,null,null,33,"認定こども園真浄寺保育園","高砂市伊保3丁目15番17号","（福）洗心福祉会　真浄寺保育園","理事長","井村　智眼",null," "]
[null,null,null,null,null,null,null,null,null,null,null,null,null,34,"認定こども園白兎愛育園　","高砂市荒井町千鳥2丁目23-12","（宗）荒井神社","代表役員","廣瀬　元正","○","④ 委任状が必要です。兵庫県保育協会のHPから様式をダウンロードして、押印の上、兵庫県保育協会あて郵送してください。"]
[null,null,null,null,null,null,null,null,null,null,null,null,null,35,"正蓮寺こども園","高砂市阿弥陀町魚橋1673番地1","（福）正蓮寺静蔭学園","理事長","髙谷　俊英",null," "]
[null,null,null,null,null,null,null,null,null,null,null,null,null,36,"幼保連携型認定こども園中筋保育園","高砂市中筋2丁目1-7","（福）中筋福祉会　","理事長","曽根　三千代","○","④ 委任状が必要です。兵庫県保育協会のHPから様式をダウンロードして、押印の上、兵庫県保育協会あて郵送してください。"]
[null,null,null,null,null,null,null,null,null,null,null,null,null,37,"みどり丘こども園","高砂市美保里13番1号","（福）美保里福祉会","理事長","西山　雅子",null," "]
[null,null,null,null,null,null,null,null,null,null,null,null,null,38,"バンビ第二こども園","加古郡稲美町岡916番地の1","（福）稲美福祉会　バンビ第二こども園","理事長","米田　健吾",null," "]
[null,null,null,null,null,null,null,null,null,null,null,null,null,39,"いなみ野母里こども園","加古郡稲美町野寺95-5","（福）母里福祉会","理事長","大村　哲郎","○","④ 委任状が必要です。兵庫県保育協会のHPから様式をダウンロードして、押印の上、兵庫県保育協会あて郵送してください。"]
[null,null,null,null,null,null,null,null,null,null,null,null,null,40,"加古保育園","加古郡稲美町加古2314-3","（福）加古保育所","理事長","小山　清明","○","④ 委任状が必要です。兵庫県保育協会のHPから様式をダウンロードして、押印の上、兵庫県保育協会あて郵送してください。"]
[null,null,null,null,null,null,null,null,null,null,null,null,null,41,"播磨保育園","加古郡播磨町東本荘1丁目13番7号","（福）播磨福祉会","理事長","髙島　安郎",null," "]
[null,null,null,null,null,null,null,null,null,null,null,null,null,42,"キューピットこども園","加古郡播磨町北本荘6丁目9番11号","（福）キューピット福祉会","理事長","堀井　桂子","○","④ 委任状が必要です。兵庫県保育協会のHPから様式をダウンロードして、押印の上、兵庫県保育協会あて郵送してください。"]
[null,null,null,null,null,null,null,null,null,null,null,null,null,43,"播磨中央こども園","加古郡播磨町南大中1丁目5番13号","（福）八重桜会　播磨中央こども園","理事長","藤原　進",null," "]
[null,null,null,null,null,null,null,null,null,null,null,null,null,44,"蓮池こども園","明石市和坂1丁目15番1号","（福）和坂福祉会　","理事長","林谷　文子",null," "]
[null,null,null,null,null,null,null,null,null,null,null,null,null,45,"なすみ保育所","明石市魚住町清水353","（福）なすみ保育所","理事長","中林　加代子",null," "]
[null,null,null,null,null,null,null,null,null,null,null,null,null,46,"山手台こども園","明石市大久保町山手台3丁目5番地","（福）山手台保育所","理事長","三木　則夫",null," "]
[null,null,null,null,null,null,null,null,null,null,null,null,null,47,"明舞保育園","明石市朝霧南町2丁目228","（福）協和保育協会","理事長","佐藤　則子","○","④ 委任状が必要です。兵庫県保育協会のHPから様式をダウンロードして、押印の上、兵庫県保育協会あて郵送してください。"]
[null,null,null,null,null,null,null,null,null,null,null,null,null,48,"稲爪保育園","明石市大蔵本町6-10","（福）稲爪保育園","理事長","菅谷　誠夫","○","④ 委任状が必要です。兵庫県保育協会のHPから様式をダウンロードして、押印の上、兵庫県保育協会あて郵送してください。"]
[null,null,null,null,null,null,null,null,null,null,null,null,null,49,"認定こども園大久保保育園","明石市大久保町大窪1865の7番地","（福）大久保保育園","理事長","本谷　慎輔",null," "]
[null,null,null,null,null,null,null,null,null,null,null,null,null,50,"金ケ崎北保育園","明石市大久保町江井島1340","（福）福栄会　金ケ崎北保育園","理事長","福井　千恵子",null," "]
[null,null,null,null,null,null,null,null,null,null,null,null,null,51,"福田保育園","明石市大久保町江井島1340","（福）福栄会","理事長","福井　千恵子","○","④ 委任状が必要です。兵庫県保育協会のHPから様式をダウンロードして、押印の上、兵庫県保育協会あて郵送してください。"]
[null,null,null,null,null,null,null,null,null,null,null,null,null,52,"西明石愛児園","明石市藤江889番地","（福）西明石愛児園","理事長","三木　紀子",null," "]
[null,null,null,null,null,null,null,null,null,null,null,null,null,53,"幼保連携型認定こども園和坂こども園","明石市和坂1丁目15番1号","（福）和坂福祉会","理事長","林谷　文子",null," "]
[null,null,null,null,null,null,null,null,null,null,null,null,null,54,"まどかこども園","明石市大久保町大窪347-1","（福）まどか福祉会","理事長","荒井　修一郎",null," "]
[null,null,null,null,null,null,null,null,null,null,null,null,null,55,"幼保連携型認定こども園ゆたかこども園","明石市藤江756番地1","（福）ゆたか福祉会　","理事長","川本　哲三郎",null," "]
[null,null,null,null,null,null,null,null,null,null,null,null,null,56,"ドリームキューピット保育園","明石市二見町東二見756番1","（福）コアキューピット福祉会　ドリームキューピット保育園","理事長","堀井　桂子",null," "]
[null,null,null,null,null,null,null,null,null,null,null,null,null,57,"福里保育園","明石市二見町福里283番地の6","（福）あゆみ会","理事長","小西　美代子",null," "]
[null,null,null,null,null,null,null,null,null,null,null,null,null,58,"さわの保育園","明石市沢野3丁目11-19","（福）竹の子福祉会","理事長","岩澤　秀章","○","④ 委任状が必要です。兵庫県保育協会のHPから様式をダウンロードして、押印の上、兵庫県保育協会あて郵送してください。"]
[null,null,null,null,null,null,null,null,null,null,null,null,null,59,"保育所型認定こども園リトルキューピット保育園","明石市二見町東二見756番1","（福）コアキューピット福祉会　リトルキューピット保育園","理事長","堀井　桂子",null," "]
[null,null,null,null,null,null,null,null,null,null,null,null,null,60,"西脇こども園","西脇市西脇760番地の1","（福）かすぎ野","理事長","伊達　惠一",null," "]
[null,null,null,null,null,null,null,null,null,null,null,null,null,61,"比延こども園","西脇市比延町867番地の5","（福）ひえ","理事長","笹倉　和史",null," "]
[null,null,null,null,null,null,null,null,null,null,null,null,null,62,"幼保連携型認定こども園どれみこども園","西脇市高松町597","（福）どれみ学園","理事長","中辻　浩明",null," "]
[null,null,null,null,null,null,null,null,null,null,null,null,null,63,"かすがこども園","西脇市高田井町781","（福）西脇春日","理事長","藤原　幹也",null," "]
[null,null,null,null,null,null,null,null,null,null,null,null,null,64,"つまこども園","西脇市寺内8-1","（福）津万","理事長","臼井　茂樹",null," "]
[null,null,null,null,null,null,null,null,null,null,null,null,null,65,"芳田こども園","西脇市岡崎町523","（福）ほうた　芳田こども園","理事長","藤原　秀昭",null," "]
[null,null,null,null,null,null,null,null,null,null,null,null,null,66,"神和認定こども園","三木市加佐八幡本176番地の1","（福）神和福祉会","理事長","稲岡　ひとみ",null," "]
[null,null,null,null,null,null,null,null,null,null,null,null,null,67,"エンゼル認定こども園","三木市大村1067-349","（福）釜城会　エンゼル認定こども園","理事長","小林　誠和",null," "]
[null,null,null,null,null,null,null,null,null,null,null,null,null,68,"清心認定こども園","三木市緑が丘町東2-5-1","（福）正志会　清心認定こども園","理事長","北芝　美代子",null," "]
[null,null,null,null,null,null,null,null,null,null,null,null,null,69,"えびす認定こども園","三木市宿原9-1","（福）えびす福祉会　幼保連携型えびす認定こども園　","理事長","向山　和代",null," "]
[null,null,null,null,null,null,null,null,null,null,null,null,null,70,"いずみ認定こども園","三木市口吉川町大島854番地","（福）白水会","理事長","小紫　昭子",null," "]
[null,null,null,null,null,null,null,null,null,null,null,null,null,71,"自由ケ丘認定こども園","三木市志染町中自由が丘3丁目99番地","（福）自由ヶ丘福祉会","理事長","来住　哲州",null," "]
[null,null,null,null,null,null,null,null,null,null,null,null,null,72,"あけぼの認定こども園","三木市志染町井上684番地","（福）真生福祉会　","理事長","藤原　頌太郎",null," "]
[null,null,null,null,null,null,null,null,null,null,null,null,null,73,"小野ひまわりこども園","小野市広渡町66","（福）小野ひまわり保育所","理事長","小東　正敏",null," "]
[null,null,null,null,null,null,null,null,null,null,null,null,null,74,"下東条西保育所","小野市住吉町16-4","（福）下東条西保育所","理事長","進藤　利憲",null," "]
[null,null,null,null,null,null,null,null,null,null,null,null,null,75,"中央こども園","小野市新部町916-1","（福）中央保育所　","理事長","小林　孝史",null," "]
[null,null,null,null,null,null,null,null,null,null,null,null,null,76,"亀鶴こども園","小野市河合中町726-1","（福）亀鶴保育所","理事長","源田　和彦",null," "]
[null,null,null,null,null,null,null,null,null,null,null,null,null,77,"亀鶴こども園","小野市高田町1828番地の1","（福）北辰福祉会","理事長","宮崎　龍樹",null," "]
[null,null,null,null,null,null,null,null,null,null,null,null,null,78,"光明保育所","小野市神明町298","（福）光明保育所","理事長","河田　幸雄",null," "]
[null,null,null,null,null,null,null,null,null,null,null,null,null,79,"みやま保育園","小野市中谷町200-2","（福）みやま福祉会","理事長","松井　誠","○","④ 委任状が必要です。兵庫県保育協会のHPから様式をダウンロードして、押印の上、兵庫県保育協会あて郵送してください。"]
[null,null,null,null,null,null,null,null,null,null,null,null,null,80,"下東条中央保育園","小野市小田町1687の1","（福）下東条中央保育園","理事長","田中　重見",null," "]
[null,null,null,null,null,null,null,null,null,null,null,null,null,81,"粟生こども園　","小野市粟生町2951番地の1","（福）粟生福祉会　","理事長","河合　一吉",null," "]
[null,null,null,null,null,null,null,null,null,null,null,null,null,82,"来住保育所","小野市下来住町1361-1","（福）きすみの福祉会　","理事長","稲岡　明生","○","④ 委任状が必要です。兵庫県保育協会のHPから様式をダウンロードして、押印の上、兵庫県保育協会あて郵送してください。"]
[null,null,null,null,null,null,null,null,null,null,null,null,null,83,"幼保連携型白百合こども園","小野市敷地町1501番地の7","（福）敷地王子福祉会　幼保連携型白百合こども園","理事長","進藤　修一",null," "]
[null,null,null,null,null,null,null,null,null,null,null,null,null,84,"多聞こども園","加西市尾崎町285","（福）祝融会","理事長","金岡　浩隆",null," "]
[null,null,null,null,null,null,null,null,null,null,null,null,null,85,"白竜こども園","加西市玉野町435-5","（福）白龍福祉会","理事長","柏原　俊英",null," "]
[null,null,null,null,null,null,null,null,null,null,null,null,null,86,"幼保連携型認定こども園とみた","加西市窪田町3","（福）富田保育所","理事長","松本　興資",null," "]
[null,null,null,null,null,null,null,null,null,null,null,null,null,87,"正覚坊こども園","加東市上田842-2","（福）正覚坊福祉会　正覚坊こども園","理事長","片山　弘文",null," "]
[null,null,null,null,null,null,null,null,null,null,null,null,null,88,"東古瀬こども園","加東市上田842-2","（福）正覚坊福祉会　東古瀬こども園","理事長","片山　弘文",null," "]
[null,null,null,null,null,null,null,null,null,null,null,null,null,89,"泉こども園","加東市西垂水105","（福）泉福祉会　泉こども園","理事長","藤井　敏明",null," "]
[null,null,null,null,null,null,null,null,null,null,null,null,null,90,"たきの愛児園","加東市上滝野1170","（福）天理滝野愛児園","理事長","丸山　義夫",null," "]
[null,null,null,null,null,null,null,null,null,null,null,null,null,91,"認定こども園高岡育児園","加東市高岡912番地の2","（福）高岡育児園","理事長","山羽　勲",null," "]
[null,null,null,null,null,null,null,null,null,null,null,null,null,92,"加茂こども園","加東市北野235-1","（福）加茂福祉会","理事長","椎名　ますみ",null," "]
[null,null,null,null,null,null,null,null,null,null,null,null,null,93,"河高こども園","加東市河高2116","（福）河高福祉会　河高こども園","理事長","丸山　健次",null," "]
[null,null,null,null,null,null,null,null,null,null,null,null,null,94,"東条こども園","加東市掎鹿谷263-1","（福）東条福祉会","理事長","廣畑　貞一",null," "]
[null,null,null,null,null,null,null,null,null,null,null,null,null,95,"秋津こども園","加東市岡本1572-7","（福）東条保育福祉会　","理事長","古田　雅明",null," "]
[null,null,null,null,null,null,null,null,null,null,null,null,null,96,"さくら保育園","加東市岡本1572-7","（福）東条保育福祉会　","理事長","古田　雅明",null," "]
[null,null,null,null,null,null,null,null,null,null,null,null,null,97,"四恩こども園","多可郡多可町中区曽我井896-7","（福）ときわぎ会","理事長","岡原　崇昭",null," "]
[null,null,null,null,null,null,null,null,null,null,null,null,null,98,"みどりこども園","多可町中区鍛冶屋636番地の2","（福）養徳会","理事長","内藤　正衛",null," "]
[null,null,null,null,null,null,null,null,null,null,null,null,null,99,"神崎保育園","神崎郡神河町中村字向野33番地","（福）神崎福祉会　神崎保育園","理事長","中安　延哉",null," "]
[null,null,null,null,null,null,null,null,null,null,null,null,null,100,"屋形こども園","神崎郡市川町屋形386-2","（福）屋形保育所","理事長","柏原　英世",null," "]
[null,null,null,null,null,null,null,null,null,null,null,null,null,101,"姫学こども園","神崎郡福崎町南田原2062","（福）福崎福祉会","理事長","中農　一也",null," "]
[null,null,null,null,null,null,null,null,null,null,null,null,null,102,"サルビアこども園","神崎郡福崎町山崎字清水617の7","（福）サルビア会","理事長","尾﨑　幸忠",null," "]
[null,null,null,null,null,null,null,null,null,null,null,null,null,103,"認定こども園まことこども園","たつの市神岡町沢田467番地1","（福）神岡福祉会","理事長","堀川　尚爾",null," "]
[null,null,null,null,null,null,null,null,null,null,null,null,null,104,"西楽保育園","たつの市神岡町東觜崎92-2","（福）紫雲福祉会","理事長","桑門　和子","○","④ 委任状が必要です。兵庫県保育協会のHPから様式をダウンロードして、押印の上、兵庫県保育協会あて郵送してください。"]
[null,null,null,null,null,null,null,null,null,null,null,null,null,105,"幼保連携型認定こども園すみれこども園","たつの市揖保町西構46-1","（福）松原福祉会　すみれこども園","理事長","徳永　佳裕",null," "]
[null,null,null,null,null,null,null,null,null,null,null,null,null,106,"旭こども園","たつの市龍野町富永16","（福）旭福祉会　旭こども園","理事長","淺井　章一",null," "]
[null,null,null,null,null,null,null,null,null,null,null,null,null,107,"東栗栖保育園","たつの市新宮町能地338-2","（福）東栗栖社会福祉協会","理事長","梅田　健","○","④ 委任状が必要です。兵庫県保育協会のHPから様式をダウンロードして、押印の上、兵庫県保育協会あて郵送してください。"]
[null,null,null,null,null,null,null,null,null,null,null,null,null,108,"心光こども園","たつの市新宮町仙正１８７－４","（福）心光福祉会","理事長","内海　裕子","○","④ 委任状が必要です。兵庫県保育協会のHPから様式をダウンロードして、押印の上、兵庫県保育協会あて郵送してください。"]
[null,null,null,null,null,null,null,null,null,null,null,null,null,109,"香島保育園","たつの市新宮町平野６９２番地の３２","（福）栗栖の荘","理事長","小林　多聞","○","④ 委任状が必要です。兵庫県保育協会のHPから様式をダウンロードして、押印の上、兵庫県保育協会あて郵送してください。"]
[null,null,null,null,null,null,null,null,null,null,null,null,null,110,"第一仏光こども園","たつの市揖保川町山津屋67-2","（福）めぐみ会　","理事長","堀　正昭",null," "]
[null,null,null,null,null,null,null,null,null,null,null,null,null,111,"認定こども園まあや学園","たつの市揖保川町二塚385の1","（福）こどもの国","理事長","堀　良尚",null," "]
[null,null,null,null,null,null,null,null,null,null,null,null,null,112,"岩見保育所","たつの市御津町岩見1462","（福）岩見保育所","理事長","有本　慎也",null," "]
[null,null,null,null,null,null,null,null,null,null,null,null,null,113,"認定こども園じょうせんこども園　","たつの市御津町朝臣130","（福）慈雲福祉会　認定こども園じょうせんこども園　","理事長","小泉　智子",null," "]
[null,null,null,null,null,null,null,null,null,null,null,null,null,114,"宍粟わかば","\t宍粟市山崎町庄能426","（福）山崎若葉保育園","理事長","中川　晋平",null," "]
[null,null,null,null,null,null,null,null,null,null,null,null,null,115,"山崎聖旨保育園","宍粟市山崎町鹿沢101","（宗）日本基督教団　山崎教会","理事長","前野　富美子","○","④ 委任状が必要です。兵庫県保育協会のHPから様式をダウンロードして、押印の上、兵庫県保育協会あて郵送してください。"]
[null,null,null,null,null,null,null,null,null,null,null,null,null,116,"くりのみこども園","宍粟市山崎町段43","（福）晋和福祉会　くりのみこども園","理事長","川本　鈴子",null," "]
[null,null,null,null,null,null,null,null,null,null,null,null,null,117,"みのりこども園","宍粟市山崎町高下字稲田408番地3","（福）やまさき福祉会","理事長","森下　實子","○","④ 委任状が必要です。兵庫県保育協会のHPから様式をダウンロードして、押印の上、兵庫県保育協会あて郵送してください。"]
[null,null,null,null,null,null,null,null,null,null,null,null,null,118,"まあるこども園","宍粟市山崎町野300","（福）ひこばえ福祉会","理事長","西上　千津子",null," "]
[null,null,null,null,null,null,null,null,null,null,null,null,null,119,"波賀みどり保育園","宍粟市波賀町安賀54番地の1","（福）波賀福祉会","理事長","小林　盛司",null," "]
[null,null,null,null,null,null,null,null,null,null,null,null,null,120,"ちくさ杉の子こども園","宍粟市千種町千草1番地1","（福）千種杉の子会","理事長","高山　政信","○","④ 委任状が必要です。兵庫県保育協会のHPから様式をダウンロードして、押印の上、兵庫県保育協会あて郵送してください。"]
[null,null,null,null,null,null,null,null,null,null,null,null,null,121,"安養保育園","揖保郡太子町福地408","（福）明和福祉会　安養保育園","理事長","松浦　暁了",null," "]
[null,null,null,null,null,null,null,null,null,null,null,null,null,122,"八幡保育所","相生市那波本町17-30","（福）八幡保育所","理事長","穂積　由子",null," "]
[null,null,null,null,null,null,null,null,null,null,null,null,null,123,"陽光こども園","赤穂郡上郡町西野山字岩ノ元289番地の48","（福）上郡福祉会","理事長","布埜　加代","○","④ 委任状が必要です。兵庫県保育協会のHPから様式をダウンロードして、押印の上、兵庫県保育協会あて郵送してください。"]
[null,null,null,null,null,null,null,null,null,null,null,null,null,124,"豊陵保育園","豊岡市中央町5-29","（福）豊陵保育園","理事長","田中　千春",null," "]
[null,null,null,null,null,null,null,null,null,null,null,null,null,125,"おもしろたのし　みえこども園","豊岡市鎌田116番地","（福）みえ福祉会","理事長","吉盛　文彦",null," "]
[null,null,null,null,null,null,null,null,null,null,null,null,null,126,"チャイルドハウスこども園","豊岡市下陰5","（福）豊友会　チャイルドハウスこども園","理事長","永淵　慎 ",null," "]
[null,null,null,null,null,null,null,null,null,null,null,null,null,127,"城崎こども園","豊岡市城崎町湯島802-1","（福）城崎こども園","理事長","西垣　義弘",null," "]
[null,null,null,null,null,null,null,null,null,null,null,null,null,128,"蓼川こども園","豊岡市日高町祢布1001の2","（福）蓼川福祉会　蓼川こども園","理事長","井上　正治",null," "]
[null,null,null,null,null,null,null,null,null,null,null,null,null,129,"静修保育園","豊岡市日高町祢布1001の2","（福）蓼川福祉会　　静修保育園","理事長","井上　正治",null," "]
[null,null,null,null,null,null,null,null,null,null,null,null,null,130,"八代保育園","豊岡市日高町中331の1","（福）八代保育園","理事長","吉谷　稔子"]
[null,null,null,null,null,null,null,null,null,null,null,null,null,131,"こくふこども園","豊岡市日高町野々庄929番地","（福）こくふこども園","理事長","林　秀喜",null," "]
[null,null,null,null,null,null,null,null,null,null,null,null,null,132,"蓼川第二保育園　","豊岡市日高町祢布1001の2","（福）蓼川福祉会　蓼川第二保育園　","理事長","井上　正治",null," "]
[null,null,null,null,null,null,null,null,null,null,null,null,null,133,"みかたの森こども園","豊岡市日高町栗山901-2","（福）三方","理事長","中澤　慈運","○","④ 委任状が必要です。兵庫県保育協会のHPから様式をダウンロードして、押印の上、兵庫県保育協会あて郵送してください。"]
[null,null,null,null,null,null,null,null,null,null,null,null,null,134,"おさかおのこども園","豊岡市出石町町分559-1","（福）愛育会","理事長","山下　康雄",null," "]
[null,null,null,null,null,null,null,null,null,null,null,null,null,135,"出石愛育園","豊岡市出石町町分559-1","（福）愛育会　","理事長","山下　康雄",null," "]
[null,null,null,null,null,null,null,null,null,null,null,null,null,136,"明星認定こども園","美方郡新温泉町諸寄356","（一財）　明星保育園","理事長","梅垣　裕之",null," "]
[null,null,null,null,null,null,null,null,null,null,null,null,null,137,"青葉保育園","美方郡香美町香住区下浜595番地","（福）青葉福祉会 青葉保育園","理事長","横田　慈正",null," "]
[null,null,null,null,null,null,null,null,null,null,null,null,null,138,"みなと保育園","美方郡香美町香住区一日市156-1","（福）光明福祉会 ","理事長","伊藤　無學",null," "]
[null,null,null,null,null,null,null,null,null,null,null,null,null,139,"宝樹保育園","美方郡香美町村岡区村岡3030-1","（福）宝樹福祉会　宝樹保育園","理事長","西村　蓮希",null," "]
[null,null,null,null,null,null,null,null,null,null,null,null,null,140,"たいようこども園","養父市八鹿町朝倉1261-1","（福）太陽福祉会","理事長","宇和野　修介",null," "]
[null,null,null,null,null,null,null,null,null,null,null,null,null,141,"日光認定こども園","養父市八鹿町下網場451","（福）日光学園　","理事長","森田　悦子",null," "]
[null,null,null,null,null,null,null,null,null,null,null,null,null,142,"童和こども園","養父市八鹿町八木1482","社会福祉法人童和福祉会","理事長","西本　厚文",null," "]
[null,null,null,null,null,null,null,null,null,null,null,null,null,143,"ひまわりこども園","朝来市和田山町和田山372番地1","（福）明照福祉会　ひまわりこども園","理事長","田村　善隆",null," "]
[null,null,null,null,null,null,null,null,null,null,null,null,null,144,"枚田みのり保育園　","朝来市和田山町枚田1649番地","（福）恵心福祉会","理事長","小林　俊光","○","④ 委任状が必要です。兵庫県保育協会のHPから様式をダウンロードして、押印の上、兵庫県保育協会あて郵送してください。"]
[null,null,null,null,null,null,null,null,null,null,null,null,null,145,"認定こども園照福こども園","朝来市山東町溝黒123番地の1","（福）与布土福祉会　","理事長","石田　保孝",null," "]
[null,null,null,null,null,null,null,null,null,null,null,null,null,146,"やなせこども園","朝来市山東町矢名瀬町772番地","（福）梁瀬福祉会　","理事長","福本　千歳",null," "]
[null,null,null,null,null,null,null,null,null,null,null,null,null,147,"あわが保育園","朝来市山東町溝黒123の1","（福）与布土福祉会","理事長","石田　保孝",null," "]
[null,null,null,null,null,null,null,null,null,null,null,null,null,148,"認定こども園ささやまこども園","丹波篠山市東新町2番地","（福）篠山福祉会","理事長","藤本　善一","○","④ 委任状が必要です。兵庫県保育協会のHPから様式をダウンロードして、押印の上、兵庫県保育協会あて郵送してください。"]
[null,null,null,null,null,null,null,null,null,null,null,null,null,149,"認定こども園さちよ","丹波市氷上町成松146 番地１","（福）氷上町福祉会　認定こども園さちよ","理事長","上村　行男",null," "]
[null,null,null,null,null,null,null,null,null,null,null,null,null,150,"認定こども園かすが花の子園","丹波市春日町国領865","（福）春日福祉会　認定こども園かすが花の子園","理事長","足立　儀明",null," "]
[null,null,null,null,null,null,null,null,null,null,null,null,null,151,"認定こども園みつみ","丹波市春日町野村65番1","（福）みつみ福祉会　認定こども園みつみ","理事長","吉見　直人",null," "]
[null,null,null,null,null,null,null,null,null,null,null,null,null,152,"幼保連携型認定こども園洲本こども園","洲本市本町7丁目4番25号","（福）三愛会","理事長","三倉　二九満",null," "]
[null,null,null,null,null,null,null,null,null,null,null,null,null,153,"千草こどもの園","洲本市千草己25番地","（福）千草福祉会　","理事長","富本　節子","○","④ 委任状が必要です。兵庫県保育協会のHPから様式をダウンロードして、押印の上、兵庫県保育協会あて郵送してください。"]
[null,null,null,null,null,null,null,null,null,null,null,null,null,154,"幼保連携型認定こども園松帆南","南あわじ市松帆高屋乙192番地","社会福祉法人　みかり会","理事長","谷村　誠",null," "]
[null,null,null,null,null,null,null,null,null,null,null,null,null,155,"幼保連携型認定こども園松帆北","南あわじ市松帆高屋乙192番地","社会福祉法人　みかり会","理事長","谷村　誠",null," "]
[null,null,null,null,null,null,null,null,null,null,null,null,null,156,"福良こども園","南あわじ市福良乙1198-1","（福）むつみ福祉会","理事長","島田　則恵",null," "]
[null,null,null,null,null,null,null,null,null,null,null,null,null,157,"志筑保育園","淡路市志筑1542-1","（福）椎の木会","理事長","三浦　義昭",null," "]
[null,null,null,null,null,null,null,null,null,null,null,null,null,158,"佐野保育園","淡路市佐野1327番地","（福）佐野保育園","理事長","菅　知世子",null," "]
[null,null,null,null,null,null,null,null,null,null,null,null,null,159,"山本南保育園","宝塚市安倉西3丁目1-7","（福）あひる福祉会　山本南保育園","理事長","脇田　浩美",null," "]
[null,null,null,null,null,null,null,null,null,null,null,null,null,160,"認定こども園かわにしひよし","大阪府高槻市日吉台六番町10番2号","（学）成城学園","理事長","水谷　豊三",null," "]
[null,null,null,null,null,null,null,null,null,null,null,null,null,161,"真浄寺きくなみ保育園","高砂市伊保3-15-17","（福）洗心福祉会　真浄寺きくなみ保育園","理事長","井村　智眼",null," "]
[null,null,null,null,null,null,null,null,null,null,null,null,null,162,"ハンプティダンプティこども園","明石市二見町西二見1601-1","（福）姫路文化福祉会","理事長","下林　五技","○","④ 委任状が必要です。兵庫県保育協会のHPから様式をダウンロードして、押印の上、兵庫県保育協会あて郵送してください。"]
[null,null,null,null,null,null,null,null,null,null,null,null,null,163,"寺前保育所","姫路市豊富町御蔭3278番地の57","（福）豊富台福祉会","理事長","小野　浩誠",null," "]
[null,null,null,null,null,null,null,null,null,null,null,null,null,164,"野上あゆみ保育園","静岡県浜松市中央区元城町218-26","（福）聖隷福祉事業団　","理事長","青木　善治","○","④ 委任状が必要です。兵庫県保育協会のHPから様式をダウンロードして、押印の上、兵庫県保育協会あて郵送してください。"]
[null,null,null,null,null,null,null,null,null,null,null,null,null,165,"幼保連携型認定こども園　夢咲","芦屋市東芦屋町6番10号","（福）夢工房","理事長","滝澤　功治",null," "]
[null,null,null,null,null,null,null,null,null,null,null,null,null,166,"黒田庄こども園","西脇市黒田庄町前坂930番地","（福）黒田庄","理事長","大城戸　宗孝",null," "]
[null,null,null,null,null,null,null,null,null,null,null,null,null,167,"認定こども園あおがき","丹波市青垣町沢野70番地1","（福）青垣福祉会","理事長","畑田　久祐",null," "]
[null,null,null,null,null,null,null,null,null,null,null,null,null,168,"はなみずき保育園","宝塚市中筋6丁目16-13","（福）萬年青友の会　","理事長","三重野　宗隆",null," "]
[null,null,null,null,null,null,null,null,null,null,null,null,null,169,"多田こどもの森保育園","川西市東畦野1-18-32","（福）東谷あゆみ会","理事長","穂積　富美子",null," "]
[null,null,null,null,null,null,null,null,null,null,null,null,null,170,"認定こども園川西けやき坂保育園","姫路市勝原区宮田143-3","（福）勝原福祉会","理事長","梅野　高明",null," "]
[null,null,null,null,null,null,null,null,null,null,null,null,null,171,"幼保連携型認定こども園ピュアキッズこども園","加古郡播磨町北本荘6丁目9番11号","（福）キューピット福祉会　幼保連携型認定こども園ピュアキッズこども園","理事長","堀井　桂子","○","④ 委任状が必要です。兵庫県保育協会のHPから様式をダウンロードして、押印の上、兵庫県保育協会あて郵送してください。"]
[null,null,null,null,null,null,null,null,null,null,null,null,null,172,"めばえのにわ保育園","朝来市和田山町枚田1649番地","（福）恵心福祉会","理事長","小林　俊光","○","④ 委任状が必要です。兵庫県保育協会のHPから様式をダウンロードして、押印の上、兵庫県保育協会あて郵送してください。"]
[null,null,null,null,null,null,null,null,null,null,null,null,null,173,"光の子認定こども園","神戸市須磨区妙法寺字野路山1053","（福）ぶどうの枝福祉会 光の子認定こども園","理事長","信川　るり子",null," "]
[null,null,null,null,null,null,null,null,null,null,null,null,null,174,"親和保育園","神戸市東灘区住吉本町3丁目8-17","（福）親和福祉の会","理事長","山根　耕平",null," "]
[null,null,null,null,null,null,null,null,null,null,null,null,null,175,"同朋住吉台こども園","神戸市灘区篠原北町4丁目8番1号","（福）同朋福祉会　幼保連携型認定こども園　同朋住吉台こども園","理事長","梅木　澄代",null," "]
[null,null,null,null,null,null,null,null,null,null,null,null,null,176,"幼保連携型認定こども園甲南すこやかこども園","神戸市東灘区魚崎北町2丁目10番10号","（福）すこやか会","理事長","魚井　健一",null," "]
[null,null,null,null,null,null,null,null,null,null,null,null,null,177,"幼保連携型認定こども園　神戸夢","芦屋市東芦屋町6番10号","(福）夢工房","理事長","滝澤　功治",null," "]
[null,null,null,null,null,null,null,null,null,null,null,null,null,178,"石屋川くるみ保育園","赤穂市新田1444番地","（福）桜谷福祉会","理事長","花房　八重美",null," "]
[null,null,null,null,null,null,null,null,null,null,null,null,null,179,"モーツァルトこども園","京都府京都市伏見区深草泓ノ壺町37-1　","（福）フジの会　　モーツァルトこども園","理事長","砂川　靖子",null," "]
[null,null,null,null,null,null,null,null,null,null,null,null,null,180,"幼保連携型認定こども園ふかえ虹こども園","加古郡稲美町国安字新開1256","（福）日の出福祉会 ふかえ虹こども園","理事長","中田　喜久",null," "]
[null,null,null,null,null,null,null,null,null,null,null,null,null,181,"本山北町あすのこども園","姫路市広畑区才850-1","（福）子どもの家福祉会","理事長","赤西　雅之",null," "]
[null,null,null,null,null,null,null,null,null,null,null,null,null,182,"認定こども園魚崎COCORO","岡山県津山市瓜生原337番地1","（福）鶯園　認定こども園魚崎COCORO","理事長","小林　和彦",null," "]
[null,null,null,null,null,null,null,null,null,null,null,null,null,183,"きらり保育園","大阪府堺市北区南花田町1687-2 ","（福）堺暁福祉会　きらり保育園","理事長","宮田　裕司",null," "]
[null,null,null,null,null,null,null,null,null,null,null,null,null,184,"認定こども園あおい宙","川西市久代6-1-90","（福）友朋会　認定こども園あおい宙","理事長","藤澤　徹",null," "]
[null,null,null,null,null,null,null,null,null,null,null,null,null,185,"認定こども園岡本ハーベストこども園","神戸市東灘区岡本1-11-5","（福）ハーベスト　認定こども園岡本ハーベストこども園","理事長","摺河　加小里",null," "]
[null,null,null,null,null,null,null,null,null,null,null,null,null,186,"甲南山手保育園","神戸市東灘区北青木1丁目1番3号","（福）千種会　甲南山手保育園","理事長","岸本　多佳子",null," "]
[null,null,null,null,null,null,null,null,null,null,null,null,null,187,"おかもと虹こども園","加古郡稲美町国安字新開1256","（福）日の出福祉会","理事長","中田　喜久",null," "]
[null,null,null,null,null,null,null,null,null,null,null,null,null,188,"認定こども園御影のどか保育園","神戸市東灘区御影3-28-1","（福）信愛学園","理事長","川村　基子",null," "]
[null,null,null,null,null,null,null,null,null,null,null,null,null,189,"甲南こども園","神戸市東灘区森南町3-1-4","（福）甲南愛育会","理事長","秋元　典子",null," "]
[null,null,null,null,null,null,null,null,null,null,null,null,null,190,"光愛児園","神戸市灘区篠原南町5-3-15","（福）親愛会　光愛児園","理事長","橋本　賢一",null," "]
[null,null,null,null,null,null,null,null,null,null,null,null,null,191,"おおいしこども園","神戸市灘区大石北町3番33号","（福）大石保育園　おおいしこども園","理事長","松岡　千恵子",null," "]
[null,null,null,null,null,null,null,null,null,null,null,null,null,192,"同朋保育園","神戸市灘区篠原北町4丁目8番1号","（福）同朋福祉会　同朋保育園","理事長","梅木　澄代",null," "]
[null,null,null,null,null,null,null,null,null,null,null,null,null,193,"ゆりか認定こども園　","神戸市須磨区妙法寺字野路山1053","（福）ぶどうの枝福祉会　ゆりか認定こども園","理事長","信川　るり子",null," "]
[null,null,null,null,null,null,null,null,null,null,null,null,null,194,"はっとこども園","神戸市灘区摩耶海岸通2-3-14","（福）種の会　幼保連携型認定こども園　はっとこども園","理事長","片山　雄基",null," "]
[null,null,null,null,null,null,null,null,null,null,null,null,null,195,"オリンピア都こども園","神戸市中央区生田町1丁目2番32号","（福）光朔会","理事長","山口　元",null," "]
[null,null,null,null,null,null,null,null,null,null,null,null,null,196,"幼保連携型認定こども園なかはらこども園","神戸市灘区摩耶海岸通2丁目3番14号","（福）種の会　なかはらこども園","理事長","片山　雄基","○","④ 委任状が必要です。兵庫県保育協会のHPから様式をダウンロードして、押印の上、兵庫県保育協会あて郵送してください。"]
[null,null,null,null,null,null,null,null,null,null,null,null,null,197,"幼保連携型めばえの園認定こども園","姫路市四郷町東阿保44番地","（福）尚紫会　幼保連携型めばえの園認定こども園","理事長","高野　朝光",null," "]
[null,null,null,null,null,null,null,null,null,null,null,null,null,198,"幼保連携型認定こども園友愛幼児園","神戸市中央区吾妻通5-2-20","（福）イエス団　友愛幼児園","理事長","神﨑　清一",null," "]
[null,null,null,null,null,null,null,null,null,null,null,null,null,199,"幼保連携型みのり認定こども園","神戸市中央区脇浜町2丁目5-13","（福）みのり福祉会","理事長","黒川　泰代",null," "]
[null,null,null,null,null,null,null,null,null,null,null,null,null,200,"大慈幼保連携型認定こども園","神戸市中央区東川崎町6丁目2-6","（福）大慈厚生事業会　大慈幼保連携型認定こども園","理事長","松井　尚子",null," "]
[null,null,null,null,null,null,null,null,null,null,null,null,null,201,"幼保連携型認定こども園ゆりかごこども園","神戸市兵庫区氷室町2丁目14番1","（福）ゆりかごゆりかごこども園","理事長","田窪　和行",null," "]
[null,null,null,null,null,null,null,null,null,null,null,null,null,202,"宝地院保育園","神戸市兵庫区荒田町3丁目17-1","（福）宝地院福祉会　宝地院保育園","理事長","中川　正興",null," "]
[null,null,null,null,null,null,null,null,null,null,null,null,null,203,"神徳館こども園","神戸市兵庫区御崎本町1丁目1番31号","（福）神徳保育会","理事長","長田　庄太郎",null," "]
[null,null,null,null,null,null,null,null,null,null,null,null,null,204,"ルンビニー愛児園","神戸市兵庫区中道通9丁目1-8","（宗）光明寺　ルンビニー愛児園","代表役員","山西 　昭義",null," "]
[null,null,null,null,null,null,null,null,null,null,null,null,null,205,"幼保連携型認定こども園大同保育園","神戸市長田区東尻池町３ー６－２７","（福）報恩感謝会　大同保育園","理事長","中山　満介",null," "]
[null,null,null,null,null,null,null,null,null,null,null,null,null,206,"幼保連携型認定こども園みさきこども園","明石市藤江756番地1","（福）ゆたか福祉会　みさきこども園","理事長","川本　哲三郎"]
[null,null,null,null,null,null,null,null,null,null,null,null,null,207,"モーツァルト兵庫こども園","京都府京都市伏見区深草泓ノ壺町37-1　","（福）フジの会　　モーツァルト兵庫こども園","理事長","砂川　靖子",null," "]
[null,null,null,null,null,null,null,null,null,null,null,null,null,208,"大慈ひょうご幼保連携型認定こども園","神戸市中央区東川崎町6丁目2-6","（福）大慈厚生事業会　大慈ひょうご幼保連携型認定こども園","理事長","松井　尚子",null," "]
[null,null,null,null,null,null,null,null,null,null,null,null,null,209,"新生こども園","神戸市長田区平和台町2-1-23","（福）神戸新生福祉会　","理事長","森田　文明",null," "]
[null,null,null,null,null,null,null,null,null,null,null,null,null,210,"幼保連携型認定こども園たから保育園","神戸市長田区東尻池町3-6-27","（福）報恩感謝会　たから保育園","理事長","中山　満介",null," "]
[null,null,null,null,null,null,null,null,null,null,null,null,null,211,"けやき保育園","神戸市長田区大日丘町3丁目10-9","（福）雲雀ヶ丘福祉会　けやき保育園","理事長","溝田　浩一",null," "]
[null,null,null,null,null,null,null,null,null,null,null,null,null,212,"認定こども園神楽こども園","神戸市長田区水笠通3丁目4-14","（福）神戸保育会　神楽こども園","理事長","土井　正孝",null," "]
[null,null,null,null,null,null,null,null,null,null,null,null,null,213,"太田共同保育園","神戸市西区枝吉4丁目26","（福）おおた","理事長","前田　千代",null," "]
[null,null,null,null,null,null,null,null,null,null,null,null,null,214,"幼保連携型認定こども園ちとせこども園","神戸市垂水区城が山1丁目6番22号","（福）陽光会　幼保連携型認定こども園ちとせこども園","理事長","大濱　建一",null," "]
[null,null,null,null,null,null,null,null,null,null,null,null,null,215,"幼保連携型認定こども園北須磨保育センター","神戸市須磨区友が丘3丁目107","（福）北須磨保育センター","理事長","鳥形　猛",null," "]
[null,null,null,null,null,null,null,null,null,null,null,null,null,216,"幼保連携型認定こども園あじさいこども園","神戸市須磨区白川台4丁目20-20","（福）あじさい会","理事長","池上　勝義",null," "]
[null,null,null,null,null,null,null,null,null,null,null,null,null,217,"幼保連携型認定こども園のぞみ保育園","神戸市中央区吾妻通5－2－20 ","（福）イエス団　のぞみ保育園","理事長","神﨑　清一",null," "]
[null,null,null,null,null,null,null,null,null,null,null,null,null,218,"やまびこ保育園","神戸市垂水区歌敷山2丁目5番9号","（福）泰福祉会　やまびこ保育園","理事長","田丸　泰久",null," "]
[null,null,null,null,null,null,null,null,null,null,null,null,null,219,"幼保連携型認定こども園舞子保育園","神戸市垂水区西舞子2-12-27","（福）舞子福祉会","理事長","藤本　篤志",null," "]
[null,null,null,null,null,null,null,null,null,null,null,null,null,220,"幼保連携型認定こども園歌敷山保育園","神戸市垂水区歌敷山2丁目5番9号","（福）泰福祉会　歌敷山保育園","理事長","田丸　泰久",null," "]
[null,null,null,null,null,null,null,null,null,null,null,null,null,221,"幼保連携型認定こども園東垂水保育園","神戸市垂水区城が山1丁目6番22号","（福）陽光会　幼保連携型認定こども園　東垂水保育園","理事長","大濱　建一",null," "]
[null,null,null,null,null,null,null,null,null,null,null,null,null,222,"幼保連携型認定こども園しおやこども園","神戸市垂水区城が山1丁目6番22号","（福）陽光会　幼保連携型認定こども園しおやこども園","理事長","大濱　建一",null," "]
[null,null,null,null,null,null,null,null,null,null,null,null,null,223,"幼保連携型認定こども園滝の茶屋保育園","神戸市垂水区城が山1丁目6番22号","（福）陽光会　幼保連携型認定こども園　滝の茶屋保育園","理事長","大濱　建一",null," "]
[null,null,null,null,null,null,null,null,null,null,null,null,null,224,"幼保連携型認定こども園学が丘保育園","神戸市垂水区学が丘4丁目9-10","（福）学が丘福祉会","理事長","箕浦　純子",null," "]
[null,null,null,null,null,null,null,null,null,null,null,null,null,225,"幼保連携型認定こども園たるみ保育園","神戸市垂水区平磯4丁目5-14","（福）明進會","理事長","中後　寛",null," "]
[null,null,null,null,null,null,null,null,null,null,null,null,null,226,"幼保連携型認定こども園多夢の森","南あわじ市松帆高屋乙192番地","社会福祉法人　みかり会","理事長","谷村　誠",null," "]
[null,null,null,null,null,null,null,null,null,null,null,null,null,227,"ドレミキッズ保育園","神戸市垂水区舞子台2丁目9番5号","（株）ハートフィールド　ドレミキッズ保育園","代表者","濵﨑　史子",null," "]
[null,null,null,null,null,null,null,null,null,null,null,null,null,228,"幼保連携型認定こども園夢の森","南あわじ市松帆高屋乙192番地","社会福祉法人　みかり会","理事長","谷村　誠",null," "]
[null,null,null,null,null,null,null,null,null,null,null,null,null,229,"幼保連携型認定こども園千鳥が丘親和こども園","神戸市東灘区住吉本町3丁目8-17","（福）親和福祉の会　千鳥が丘親和こども園","理事長","山根　耕平",null," "]
[null,null,null,null,null,null,null,null,null,null,null,null,null,230,"幼保連携型認定こども園ことぶきこども園","神戸市垂水区福田4丁目6-18","（福）神戸轟会　ことぶきこども園","理事長","蘆田　照子",null," "]
[null,null,null,null,null,null,null,null,null,null,null,null,null,231,"幼保連携型おとぎ認定こども園","姫路市紺屋町97番地玉田ビル2F","（福）道心　","理事長","永井　快俊",null," "]
[null,null,null,null,null,null,null,null,null,null,null,null,null,232,"かすみがおか虹こども園","加古郡稲美町国安字新開1256","（福）日の出福祉会","理事長","中田　喜久",null," "]
[null,null,null,null,null,null,null,null,null,null,null,null,null,233,"小束山認定こども園","明石市二見町福里283-6","（福）あゆみ会　小束山認定こども園","理事長","小西　美代子","○","④ 委任状が必要です。兵庫県保育協会のHPから様式をダウンロードして、押印の上、兵庫県保育協会あて郵送してください。"]
[null,null,null,null,null,null,null,null,null,null,null,null,null,234,"日輪寺保育園","神戸市西区玉津町小山563","（宗）日輪寺　日輪寺保育園","代表役員","虎熊　円城",null," "]
[null,null,null,null,null,null,null,null,null,null,null,null,null,235,"弁天こども園","神戸市西区伊川谷町有瀬555","（福）漆山福祉会　弁天こども園","理事長","久保 臣史",null," "]
[null,null,null,null,null,null,null,null,null,null,null,null,null,236,"幼保連携型認定こども園おっこう山","神戸市西区神出町五百蔵142-400","（福）雄岡山福祉会　幼保連携型認定こども園おっこう山","理事長","総毛　祐治",null," "]
[null,null,null,null,null,null,null,null,null,null,null,null,null,237,"幼保連携型認定こども園平野保育園","神戸市西区平野町芝崎298の1","（福）平野福祉会　平野保育園","理事長","吉川　和代",null," "]
[null,null,null,null,null,null,null,null,null,null,null,null,null,238,"幼保連携型認定こども園出合保育園","神戸市西区玉津町出合224-2","（福）出合福祉会　幼保連携型認定こども園出合保育園","理事長","橋本　隆太",null," "]
[null,null,null,null,null,null,null,null,null,null,null,null,null,239,"幼保連携型認定こども園あさひ保育園","神戸市長田区東尻池町3-6-27","（福）報恩感謝会　あさひ保育園","理事長","中山　満介",null," "]
[null,null,null,null,null,null,null,null,null,null,null,null,null,240,"幼保連携型認定こども園持子保育園","神戸市西区持子3丁目114","（福）持子福祉会","理事長","髙野　聖士",null," "]
[null,null,null,null,null,null,null,null,null,null,null,null,null,241,"幼保連携型認定こども園あゆみ幼児園","神戸市西区糀台3丁目32-7","（福）愛児会　幼保連携型認定こども園　あゆみ幼児園","理事長","井塚　啓文",null," "]
[null,null,null,null,null,null,null,null,null,null,null,null,null,242,"幼保連携型認定こども園YMCA保育園","神戸市西区学園西町5丁目4","（福）神戸YMCA福祉会　YMCA保育園","理事長","小澤　昌甲",null," "]
[null,null,null,null,null,null,null,null,null,null,null,null,null,243,"幼保連携型認定こども園竹の台保育園","神戸市長田区東尻池町3-6-27","（福）報恩感謝会　竹の台保育園","理事長","中山　満介",null," "]
[null,null,null,null,null,null,null,null,null,null,null,null,null,244,"美賀多保育園","神戸市西区平野町芝崎298の1","（福）平野福祉会　美賀多保育園","理事長","吉川　和代","○","④ 委任状が必要です。兵庫県保育協会のHPから様式をダウンロードして、押印の上、兵庫県保育協会あて郵送してください。"]
[null,null,null,null,null,null,null,null,null,null,null,null,null,245,"同朋にこにこ園","神戸市灘区篠原北町4丁目8番1号","（福）同朋福祉会　同朋にこにこ園","理事長","梅木　澄代",null," "]
[null,null,null,null,null,null,null,null,null,null,null,null,null,246,"ひまわりこども園","神戸市西区伊川谷町上脇24番地","（福）よつば福祉会　幼保連携型認定こども園　ひまわりこども園","理事長","山田　茂之",null," "]
[null,null,null,null,null,null,null,null,null,null,null,null,null,247,"幼保連携型認定こども園なごみ保育園","神戸市西区伊川谷町上脇字平山952番1","（福）和光福祉会　","理事長","平井　昭博",null," "]
[null,null,null,null,null,null,null,null,null,null,null,null,null,248,"わらべ保育園","神戸市西区平野町芝崎298の1","（福）平野福祉会　わらべ保育園","理事長","吉川　和代",null," "]
[null,null,null,null,null,null,null,null,null,null,null,null,null,249,"枝吉保育所","神戸市西区枝吉4丁目26","（福）おおた","理事長","前田　千代",null," "]
[null,null,null,null,null,null,null,null,null,null,null,null,null,250,"幼保連携型認定こども園西神戸YMCA保育園","神戸市西区学園西町5丁目4","（福）神戸YMCA福祉会　西神戸YMCA保育園","理事長","小澤　昌甲",null," "]
[null,null,null,null,null,null,null,null,null,null,null,null,null,251,"認定こども園　太陽の子保育園","神戸市北区惣山町1丁目7-5","（福）太陽の会","理事長","坪谷　令子",null," "]
[null,null,null,null,null,null,null,null,null,null,null,null,null,252,"認定こども園頌栄保育園","神戸市北区鳴子2丁目11番2号","（福）頌栄会　認定こども園　頌栄保育園　","理事長","原　寛",null," "]
[null,null,null,null,null,null,null,null,null,null,null,null,null,253,"みどりこども園","神戸市北区目の峰1丁目20-1","（福）翠福祉会　みどりこども園","理事長","豊田　則子",null," "]
[null,null,null,null,null,null,null,null,null,null,null,null,null,254,"幼保連携型認定こども園　鈴蘭台北町こども園","神戸市西区神出町五百蔵142-400","（福）雄岡山福祉会　幼保連携型認定こども園　鈴蓮台北町こども園","理事長","総毛　祐治","○","④ 委任状が必要です。兵庫県保育協会のHPから様式をダウンロードして、押印の上、兵庫県保育協会あて郵送してください。"]
[null,null,null,null,null,null,null,null,null,null,null,null,null,255,"すずらんキッズ保育園","神戸市北区鈴蘭台南町1-4-40","（福）すずらんだい福祉会","理事長","阿部　能英",null," "]
[null,null,null,null,null,null,null,null,null,null,null,null,null,256,"認定こども園　西鈴蘭台頌栄保育園","神戸市北区鳴子２丁目１１－２","（福）頌栄会　西鈴蘭台頌栄保育園","理事長","原　寛",null," "]
[null,null,null,null,null,null,null,null,null,null,null,null,null,257,"幼保連携型認定こども園八多保育園","神戸市北区八多町下小名田320-1","（福）十五社の会","理事長","不老　嘉彦",null," "]
[null,null,null,null,null,null,null,null,null,null,null,null,null,258,"道場保育園","神戸市北区道場町道場106","（宗）法性寺　道場保育園","理事長","田中　元孝",null," "]
[null,null,null,null,null,null,null,null,null,null,null,null,null,259,"有馬保育園","神戸市北区有馬町1644","（福）有馬福祉会 有馬保育園","理事長","寺林　徹",null," "]
[null,null,null,null,null,null,null,null,null,null,null,null,null,260,"大池保育園","神戸市北区西大池1丁目21-11","（宗）西林寺　大池保育園","代表役員","中杉　隆法",null," "]
[null,null,null,null,null,null,null,null,null,null,null,null,null,261,"オリンピア神戸北保育園","神戸市中央区生田町1丁目2番32号","（福）光朔会　","理事長","山口　元",null," "]
[null,null,null,null,null,null,null,null,null,null,null,null,null,262,"幼保連携型認定こども園花の森","南あわじ市松帆高屋乙192番地","社会福祉法人　みかり会","理事長","谷村　誠",null," "]
[null,null,null,null,null,null,null,null,null,null,null,null,null,263,"津田このみ学園","姫路市飾磨区英賀西町2丁目33","（福）八葉福祉会　津田このみ学園","理事長","井上　裕子",null," "]
[null,null,null,null,null,null,null,null,null,null,null,null,null,264,"幼保連携型認定こども園勝原保育園","姫路市勝原区宮田143-3","（福）勝原福祉会　勝原保育園","理事長","梅野　高明",null," "]
[null,null,null,null,null,null,null,null,null,null,null,null,null,265,"幼保連携型認定こども園サンこども園","宝塚市山本西1丁目4番1号","（福）サン福祉会　サンこども園","理事長","山田　愼治",null," "]
[null,null,null,null,null,null,null,null,null,null,null,null,null,266,"幼保連携型認定こども園姫路保育園","芦屋市東芦屋町6番10号","（福）夢工房　","理事長","滝澤　功治",null," "]
[null,null,null,null,null,null,null,null,null,null,null,null,null,267,"チコハウス山びここども園","姫路市広畑区蒲田383-3","（福）あいむチコハウス山びここども園","理事長","吉田　隆三",null," "]
[null,null,null,null,null,null,null,null,null,null,null,null,null,268,"専徳寺保育園　","姫路市大津区勘兵衛町2-29","（福）海向福祉会","理事長","三木　充信","○","④ 委任状が必要です。兵庫県保育協会のHPから様式をダウンロードして、押印の上、兵庫県保育協会あて郵送してください。"]
[null,null,null,null,null,null,null,null,null,null,null,null,null,269,"幼保連携型書写認定こども園","姫路市紺屋町97番地玉田ビル2階","（福）道心　幼保連携型　書写認定こども園","理事長","永井　快俊",null," "]
[null,null,null,null,null,null,null,null,null,null,null,null,null,270,"野里こども園","姫路市威德寺町33","（福）正願寺福祉会　","理事長","角野　徹也",null," "]
[null,null,null,null,null,null,null,null,null,null,null,null,null,271,"幼保連携型認定こども園徳栄寺こども園","姫路市余部区下余部464-3","（福）徳栄寺保育園","理事長","多田　亮",null," "]
[null,null,null,null,null,null,null,null,null,null,null,null,null,272,"網干保育園","姫路市網干区新在家662","（宗）本柳寺　網干保育園","代表役員","小笠原　覚量",null," "]
[null,null,null,null,null,null,null,null,null,null,null,null,null,273,"幼保連携型認定こども園瑠璃こども園","姫路市網干区大江島寺前町120-2","（福）東光学舎福祉会","理事長","正木　竜哉",null," "]
[null,null,null,null,null,null,null,null,null,null,null,null,null,274,"姫路若葉保育園","姫路市西庄甲367-1","（福）姫路若葉福祉会","理事長","嵯峨山　由紀",null," "]
[null,null,null,null,null,null,null,null,null,null,null,null,null,275,"認定こども園うさざき","姫路市白浜町丙327-6","（福）光慧福祉会　宇佐崎保育園","理事長","小井田　善之",null," "]
[null,null,null,null,null,null,null,null,null,null,null,null,null,276,"幼保連携型認定こども園峰相ひまわり保育園","姫路市書写634-198","（福）よい子の広場福祉会　幼保連携型認定こども園　峰相ひまわり保育園","理事長","田靡　仁志","○","④ 委任状が必要です。兵庫県保育協会のHPから様式をダウンロードして、押印の上、兵庫県保育協会あて郵送してください。"]
[null,null,null,null,null,null,null,null,null,null,null,null,null,277,"幼保連携型認定こども園八木保育園","姫路市木場前中町46番地","（福）八木保育園","理事長","清流　祐昭",null," "]
[null,null,null,null,null,null,null,null,null,null,null,null,null,278,"幼保連携型認定こども園みどりこども園","姫路市飾東町八重畑1010","（福）谷内福祉会","理事長","角谷　幸子",null," "]
[null,null,null,null,null,null,null,null,null,null,null,null,null,279,"三恵城山こども園","姫路市夢前町宮置79の2","（福）三恵会","理事長","松浦　伸郎",null," "]
[null,null,null,null,null,null,null,null,null,null,null,null,null,280,"広英保育園","姫路市飾磨区英賀西町2丁目33","（福）八葉福祉会 広英保育園","理事長","井上　裕子",null," "]
[null,null,null,null,null,null,null,null,null,null,null,null,null,281,"安室保育園","姫路市田寺3丁目3-15","（福）安室　安室保育園","理事長","宗行　好信",null," "]
[null,null,null,null,null,null,null,null,null,null,null,null,null,282,"姫路前山保育園","姫路市御立中5丁目5-7","（福）姫路前山福祉会","理事長","中野　佳典",null," "]
[null,null,null,null,null,null,null,null,null,null,null,null,null,283,"幼保連携型認定こども園豊富台保育園","姫路市豊富町御蔭3278番地の57","（福）豊富台福祉会","理事長","小野　浩誠",null," "]
[null,null,null,null,null,null,null,null,null,null,null,null,null,284,"姫路めばえ保育園","姫路市本町68番地","（福）姫路めばえ福祉会　姫路めばえ保育園","理事長","兒玉　幸子",null," "]
[null,null,null,null,null,null,null,null,null,null,null,null,null,285,"みのり保育園","姫路市大津区天満1136","（福）みのり保育園","理事長","菅　祐範",null," "]
[null,null,null,null,null,null,null,null,null,null,null,null,null,286,"ポッポ保育園","尼崎市東園田町5丁目13-3","（福）東園田福祉会","理事長","松本　紀宏",null," "]
[null,null,null,null,null,null,null,null,null,null,null,null,null,287,"おさなご保育園","尼崎市塚口本町1丁目21-10","（福）おさなご福祉会　","理事長","徳永　満理",null," "]
[null,null,null,null,null,null,null,null,null,null,null,null,null,288,"園田愛児園","神戸市灘区青谷町2-1-6","（福）神戸婦人同情会 園田愛児園","理事長","城　邦子",null," "]
[null,null,null,null,null,null,null,null,null,null,null,null,null,289,"杉の子保育園","尼崎市常光寺1丁目6-1","（福）杉の子会","理事長","小阪　美恵子",null," "]
[null,null,null,null,null,null,null,null,null,null,null,null,null,290,"善法寺保育園","尼崎市小中島1丁目1番18号","（福）阪神共同福祉会　","理事長","中村　大蔵",null," "]
[null,null,null,null,null,null,null,null,null,null,null,null,null,291,"太陽の子保育園","尼崎市常光寺1丁目6-1","（福）杉の子会　","理事長","福元　孝子",null," "]
[null,null,null,null,null,null,null,null,null,null,null,null,null,292,"慈愛保育園","尼崎市東大物町1-3-7","（福）ルンビニー福祉会　慈愛保育園","理事長","波多　正文",null," "]
[null,null,null,null,null,null,null,null,null,null,null,null,null,293,"久々知おもと保育園","宝塚市中筋6丁目16-13","（福）萬年青友の会　久々知おもと保育園","理事長","三重野　宗隆",null," "]
[null,null,null,null,null,null,null,null,null,null,null,null,null,294,"ゆりかご保育園","尼崎市稲葉元町3丁目20番12号","（福）ゆりかご福祉会","理事長","楠　寛子",null," "]
[null,null,null,null,null,null,null,null,null,null,null,null,null,295,"田能っ子保育園","尼崎市田能3丁目27番7号","（福）田能福祉会","理事長","田中　達也",null," "]
[null,null,null,null,null,null,null,null,null,null,null,null,null,296,"園和北保育園","尼崎市東園田町3丁目76番地の16","（福）あい","理事長","長瀬　数子",null," "]
[null,null,null,null,null,null,null,null,null,null,null,null,null,297,"大島南保育園","尼崎市大庄西町2丁目26番18号","（福）華福祉会　大島南保育園","理事長","宮崎　敬子",null," "]
[null,null,null,null,null,null,null,null,null,null,null,null,null,298,"上坂部保育園","尼崎市上坂部2丁目30番23号","（福）未来の会","理事長","中川　隆弘",null," "]
[null,null,null,null,null,null,null,null,null,null,null,null,null,299,"幼保連携型認定こども園　夢の園","芦屋市東芦屋町6番10号","（福）夢工房　","理事長","滝澤　功治",null," "]
[null,null,null,null,null,null,null,null,null,null,null,null,null,300,"西武庫みのり保育園","尼崎市武庫元町2丁目23番15号","（福）真澄会　西武庫みのり保育園","理事長","髙松　恒美",null," "]
[null,null,null,null,null,null,null,null,null,null,null,null,null,301,"猪名の森保育園","尼崎市東園田町3丁目76番地の16","（福）あい　猪名の森保育園","理事長","長瀬　数子",null," "]
[null,null,null,null,null,null,null,null,null,null,null,null,null,302,"けま太陽の子保育園","尼崎市常光寺1丁目6-1","（福）杉の子会","理事長","小阪　美恵子",null," "]
[null,null,null,null,null,null,null,null,null,null,null,null,null,303,"いるか保育園","尼崎市大庄北5丁目21番20号","（福）いるか福祉会　いるか保育園","理事長","梅本　誠",null," "]
[null,null,null,null,null,null,null,null,null,null,null,null,null,304,"いまふくゆうゆうこども園","尼崎市今福1-2-23","（福）来夢　いまふくゆうゆうこども園","理事長","竹田　英明",null," "]
[null,null,null,null,null,null,null,null,null,null,null,null,null,305,"幼保連携型認定こども園幸和園","西宮市中須佐町3-36","（福）幸和園","理事長","増川　隆一",null," "]
[null,null,null,null,null,null,null,null,null,null,null,null,null,306,"マーヤこども園","西宮市末広町1番3号","（福）マーヤ園","理事長","阿部　芳樹",null," "]
[null,null,null,null,null,null,null,null,null,null,null,null,null,307,"聖和乳幼児保育センター","西宮市門戸西町1-46","（福）聖和福祉会　聖和乳幼児保育センター","理事長","中道　基夫",null," "]
[null,null,null,null,null,null,null,null,null,null,null,null,null,308,"やまよしKids garden","西宮市山口町下山口4丁目7-31","（福）自然の園","理事長","前中　勝彦",null," "]
[null,null,null,null,null,null,null,null,null,null,null,null,null,309,"なぎさ保育園","西宮市西宮浜4丁目13番3号","（福）桂樹会　　なぎさ保育園","理事長","内田　浩子",null," "]
[null,null,null,null,null,null,null,null,null,null,null,null,null,310,"新甲東保育園","西宮市段上町2丁目10番19号","（福）阪急福祉会　新甲東保育園","理事長","松本　千歳",null," "]
[null,null,null,null,null,null,null,null,null,null,null,null,null,311,"幼保連携型認定こども園西宮YMCA保育園","神戸市西区学園西町5丁目4","（福）神戸YMCA福祉会 西宮YMCA保育園","理事長","小澤　昌甲",null," "]
[null,null,null,null,null,null,null,null,null,null,null,null,null,312,"みどり園保育所","西宮市西宮浜4丁目13番3号","（福）桂樹会　みどり園保育所","理事長","内田　浩子",null," "]
[null,null,null,null,null,null,null,null,null,null,null,null,null,313,"東山ぽぽこども園","西宮市東山台1丁目106-2","（福）ほっとスマイル","理事長","東野　弘美",null," "]
[null,null,null,null,null,null,null,null,null,null,null,null,null,314,"ニコニコ桜保育園","西宮市南郷町8-12","（福）長陽会","理事長","長部　俊弘",null," "]
[null,null,null,null,null,null,null,null,null,null,null,null,null,315,"幼保連携型認定こども園西宮夢","芦屋市東芦屋町6番10号","（福）夢工房","理事長","滝澤　功治",null," "]
[null,null,null,null,null,null,null,null,null,null,null,null,null,316,"つぼみの子保育園","南あわじ市松帆高屋乙192番地","社会福祉法人　みかり会","理事長","谷村　誠",null," "]
[null,null,null,null,null,null,null,null,null,null,null,null,null,317,"幼保連携型こども園かえで保育園","西宮市浜町2-11","（福）清松学園　かえで保育園","理事長","辰馬　啓之",null," "]
[null,null,null,null,null,null,null,null,null,null,null,null,null,318,"幼保連携型認定こども園西宮つとがわYMCA保育園","神戸市西区学園西町5丁目4","（福）神戸YMCA福祉会　西宮つとがわYMCA保育園","理事長","小澤　昌甲",null," "]
[null,null,null,null,null,null,null,null,null,null,null,null,null,319,"幼保連携型認定こども園のぞみ夢","芦屋市東芦屋町6番10号","（福）夢工房","理事長","滝澤　功治",null," "]
[null,null,null,null,null,null,null,null,null,null,null,null,null,320,"善照マイトレーヤ認定こども園","西宮市山口町船坂2128番地1","（福）善照学園　善照マイトレーヤ認定こども園","理事長","松本　義博",null," "]
[null,null,null,null,null,null,null,null,null,null,null,null,null,321,"船坂保育園","西宮市山口町船坂2128番地1","（福）善照学園 船坂保育園","理事長","松本　義博",null," "]
[null,null,null,null,null,null,null,null,null,null,null,null,null,322,"夙川宝プリスクール","西宮市鷲林寺2-3-2","（福）渡洋会","理事長","渡邉　洋一",null," "]
[null,null,null,null,null,null,null,null,null,null,null,null,null,323,"認定こども園神戸保育園","神戸市長田区水笠通3丁目4-14","（福）神戸保育会　神戸保育園","理事長","土井　正孝",null," "]
[null,null,null,null,null,null,null,null,null,null,null,null,null,324,"真生きらきら保育園","神戸市中央区中山手通7丁目25-38","（福）神戸真生塾　真生きらきら保育園","理事長","上杉　徹",null," "]
[null,null,null,null,null,null,null,null,null,null,null,null,null,325,"神戸さくら保育園","赤穂市新田1444番地","（福）桜谷福祉会","理事長","花房　八重美",null," "]
[null,null,null,null,null,null,null,null,null,null,null,null,null,326,"認定こども園六甲道COCORO","岡山県津山市瓜生原337-1","（福）鶯園　","理事長","小林　和彦",null," "]
[null,null,null,null,null,null,null,null,null,null,null,null,null,327,"認定こども園高羽COCORO","岡山県津山市瓜生原337番地1","（福）鶯園","理事長","小林　和彦",null," "]
[null,null,null,null,null,null,null,null,null,null,null,null,null,328,"幼保連携型認定こども園　八幡幼稚園・八幡ピジョン保育園","神戸市灘区深田町1丁目1番3号","（学）八幡学園","理事長","前田　悦男",null," "]
[null,null,null,null,null,null,null,null,null,null,null,null,null,329,"幼保連携型認定こども園村雨こども園","豊岡市寿町11番1号寿ビル1号館302号室","（福）豊友会　村雨こども園","理事長","永淵　慎 ",null," "]
[null,null,null,null,null,null,null,null,null,null,null,null,null,330,"幼保連携型つきかげ認定こども園","神戸市中央区脇浜町2丁目5-13","（福）みのり福祉会","理事長","黒川　泰代",null," "]
[null,null,null,null,null,null,null,null,null,null,null,null,null,331,"幼保連携型認定こども園成晃ひかり保育園","大阪府摂津市学園町2丁目10番15号","（福）成晃会　成晃ひかり保育園","理事長","切東　美子",null," "]
[null,null,null,null,null,null,null,null,null,null,null,null,null,332,"ベネッセ本山保育園　","東京都新宿区西新宿2-3-1　新宿モノリスビル5階","（株）ベネッセスタイルケア　ベネッセ本山保育園","代表取締役","滝山　真也",null," "]
[null,null,null,null,null,null,null,null,null,null,null,null,null,333,"住吉むつみ保育園","神戸市東灘区住吉宮町7丁目2-35","（福）住吉むつみ会","理事長","竹田　統",null," "]
[null,null,null,null,null,null,null,null,null,null,null,null,null,334,"幼保連携型認定こども園岩岡こども園","神戸市西区岩岡町岩岡1144-9","（福）神戸岩岡福祉会","理事長","長尾　選","○","④ 委任状が必要です。兵庫県保育協会のHPから様式をダウンロードして、押印の上、兵庫県保育協会あて郵送してください。"]
[null,null,null,null,null,null,null,null,null,null,null,null,null,335,"幼保連携型認定こども園きたおおぎこども園","宝塚市山本西1丁目4番1号","（福）サン福祉会　幼保連携型認定こども園　きたおおぎこども園","理事長","山田　愼治",null," "]
[null,null,null,null,null,null,null,null,null,null,null,null,null,336,"名谷みどりこども園","神戸市北区目の峰1丁目20-1","（福）翠福祉会　名谷みどりこども園","理事長","豊田　則子",null," "]
[null,null,null,null,null,null,null,null,null,null,null,null,null,337,"幼保連携型認定こども園六甲ゆりかごこども園","神戸市兵庫区氷室町2丁目14番1","（福）ゆりかご　六甲ゆりかごこども園","理事長","田窪　和行",null," "]
[null,null,null,null,null,null,null,null,null,null,null,null,null,338,"神女中山手保育園","神戸市中央区中山手通2丁目23番2号","（福）神女きずな会","理事長","行吉　則子",null," "]
[null,null,null,null,null,null,null,null,null,null,null,null,null,339,"幼保連携型認定こども園ほそだ","神戸市西区糀台3丁目32-7","（福）愛児会　幼保連携型認定こども園　ほそだ","理事長","井塚　啓文",null," "]
[null,null,null,null,null,null,null,null,null,null,null,null,null,340,"若竹こども園","神戸市須磨区南落合3丁目9-1","（福）誠心会 若竹こども園","理事長","萬嵜　友希子",null," "]
[null,null,null,null,null,null,null,null,null,null,null,null,null,341,"バンビ第一こども園","加古郡稲美町岡916番地の1","（福）稲美福祉会　バンビ第一こども園","理事長","米田　健吾",null," "]
[null,null,null,null,null,null,null,null,null,null,null,null,null,342,"認定こども園石海保育園","揖保郡太子町福地408","（福）明和福祉会","理事長","松浦　暁了",null," "]
[null,null,null,null,null,null,null,null,null,null,null,null,null,343,"幼保連携型認定こども園上高丸","南あわじ市松帆高屋乙192番地","社会福祉法人　みかり会","理事長","谷村　誠",null," "]
[null,null,null,null,null,null,null,null,null,null,null,null,null,344,"藤江保育所","明石市藤が丘1丁目26番5号","（福）ゆたか福祉会　藤江保育所","理事長","川本　哲三郎",null," "]
[null,null,null,null,null,null,null,null,null,null,null,null,null,345,"えいの里保育園","明石市大久保町江井島字池下960番地1","（福）慶照会","理事長","日置　成行",null," "]
[null,null,null,null,null,null,null,null,null,null,null,null,null,346,"たんぽぽ保育園","たつの市龍野町宮脇10-4","（福）たんぽぽ福祉会","理事長","長谷川　隆行",null," "]
[null,null,null,null,null,null,null,null,null,null,null,null,null,347,"幼保連携型認定こども園北条こども園","加西市北条町古坂1232","（福）北条福祉会","理事長","高井　浩伸",null," "]
[null,null,null,null,null,null,null,null,null,null,null,null,null,348,"尼崎長洲保育園","姫路市勝原区宮田143-3","（福）勝原福祉会","理事長","梅野　高明",null," "]
[null,null,null,null,null,null,null,null,null,null,null,null,null,349,"よこやま保育園","神戸市兵庫区新開地1丁目3番24号","神戸電鉄株式会社","代表取締役社長","井波　洋",null," "]
[null,null,null,null,null,null,null,null,null,null,null,null,null,350,"むこっこ保育園","尼崎市南武庫之荘7丁目11-25","社会福祉法人あゆみ福祉会","理事長","櫻井　正",null," "]
[null,null,null,null,null,null,null,null,null,null,null,null,null,351,"幼保連携型認定こども園花音つばさこども園","大阪府河内長野市小山田町448番地の2","（福）博光福祉会","理事長","桐山　博",null," "]
[null,null,null,null,null,null,null,null,null,null,null,null,null,352,"大慈ほまれ幼保連携型認定こども園","神戸市中央区東川崎町6丁目2-6","（福）大慈厚生事業会　大慈ほまれ幼保連携型認定こども園","理事長","松井　尚子",null," "]
[null,null,null,null,null,null,null,null,null,null,null,null,null,353,"北野坂保育園","神戸市北区道場町塩田3080番地","（福）翔美会","理事長","兼松　宏光",null," "]
[null,null,null,null,null,null,null,null,null,null,null,null,null,354,"幼保連携型認定こども園山のまち","神戸市西区神出町五百蔵142-400","（福）雄岡山福祉会　幼保連携型認定こども園山のまち","理事長","総毛　祐治",null," "]
[null,null,null,null,null,null,null,null,null,null,null,null,null,355,"幼保連携型認定こども園いたやど保育園","神戸市西区玉津町出合224-2","（福）出合福祉会　幼保連携型認定こども園いたやど保育園","理事長","橋本　隆太",null," "]
[null,null,null,null,null,null,null,null,null,null,null,null,null,356,"北須磨第２保育園","神戸市須磨区友が丘3丁目107","（福）北須磨保育センター　","理事長","鳥形　猛",null," "]
[null,null,null,null,null,null,null,null,null,null,null,null,null,357,"幼保連携型認定こども園たけのこども園","神戸市垂水区城が山1丁目6番22号","（福）陽光会　幼保連携型認定こども園たけのこども園","理事長","大濱　建一",null," "]
[null,null,null,null,null,null,null,null,null,null,null,null,null,358,"幼保連携型認定こども園かすがこども園","神戸市垂水区北舞子2丁目5番14号","（福）神戸轟会　かすがこども園","理事長","蘆田　照子",null," "]
[null,null,null,null,null,null,null,null,null,null,null,null,null,359,"幼保連携型認定こども園心の森","南あわじ市松帆高屋乙192番地","社会福祉法人　みかり会","理事長","谷村　誠",null," "]
[null,null,null,null,null,null,null,null,null,null,null,null,null,360,"幼保連携型認定こども園多聞台こども園","洲本市本町7丁目4番25号","（福）三愛会","理事長","三倉　二九満",null," "]
[null,null,null,null,null,null,null,null,null,null,null,null,null,361,"神戸潤和保育園","姫路市勝原区宮田143-3","（福）勝原福祉会","理事長","梅野　高明",null," "]
[null,null,null,null,null,null,null,null,null,null,null,null,null,362,"認定こども園わだ","丹波市山南町和田372番地1","（福）和田福祉会","理事長","大地　常夫",null," "]
[null,null,null,null,null,null,null,null,null,null,null,null,null,363,"認定こども園あいいくの丘","丹波市市島町中竹田3733番地6","（福）竹山愛育会　認定こども園あいいくの丘","理事長","田淵　慎",null," "]
[null,null,null,null,null,null,null,null,null,null,null,null,null,364,"認定こども園いちじまこども園","丹波市市島町上垣138-1","（福）市島福祉会","理事長","永井　正伸",null," "]
[null,null,null,null,null,null,null,null,null,null,null,null,null,365,"認定こども園芦屋こばとぽっぽ保育園","芦屋市若宮町3-17","（福）芦屋こばと福祉会","理事長","小田　理恵子",null," "]
[null,null,null,null,null,null,null,null,null,null,null,null,null,366,"西神吉認定こども園","姫路市紺屋町97番地玉田ビル2F","（福）道心　幼保連携型西神吉認定こども園","理事長","永井　快俊",null," "]
[null,null,null,null,null,null,null,null,null,null,null,null,null,367,"神戸エンゼル認定こども園","三木市大村1067-349","（福）釜城会　神戸エンゼル認定こども園","理事長","小林　誠和",null," "]
[null,null,null,null,null,null,null,null,null,null,null,null,null,368,"チコハウスあおぞら保育園","姫路市広畑蒲田383-3","（福）あいむ チコハウスあおぞら保育園","理事長","吉田　隆三",null," "]
[null,null,null,null,null,null,null,null,null,null,null,null,null,369,"宝塚じあい保育園","尼崎市東大物町1-3-7","（福）ルンビニー福祉会　宝塚じあい保育園","理事長","波多　正文",null," "]
[null,null,null,null,null,null,null,null,null,null,null,null,null,370,"おおしま保育園","南あわじ市沼島2484番地","（福）西光寺和順会","理事長","寺川　光信",null," "]
[null,null,null,null,null,null,null,null,null,null,null,null,null,371,"米田西保育園","加古川市加古川町南備後321-1　ウィンサムパイン108号","（福）はとのさと福祉会　","理事長","尾野　義彦",null," "]
[null,null,null,null,null,null,null,null,null,null,null,null,null,372,"認定こども園松蔭おかもと保育園","神戸市東灘区岡本7-3-14","（福）松蔭ミカエル福祉会","理事長","中村　豊",null," "]
[null,null,null,null,null,null,null,null,null,null,null,null,null,373,"幼保連携型認定こども園第2きらり保育園","堺市北区南花田町1687番地の2","（福）堺暁福祉会　第2きらり保育園","理事長","宮田　裕司",null," "]
[null,null,null,null,null,null,null,null,null,null,null,null,null,374,"幼保連携型認定こども園神戸学園都市YMCAこども園","神戸市西区学園西町5丁目4","（福）神戸YMCA福祉会　神戸学園都市YMCAこども園","理事長","小澤　昌甲",null," "]
[null,null,null,null,null,null,null,null,null,null,null,null,null,375,"認定こども園ななほし保育園","神戸市北区鈴蘭台南町1-4-40","（福）すずらんだい福祉会","理事長","阿部　能英",null," "]
[null,null,null,null,null,null,null,null,null,null,null,null,null,376,"幼保連携型認定こども園たかつか保育園","神戸市長田区東尻池町3丁目6番27号","（福）報恩感謝会　たかつか保育園","理事長","中山　満介",null," "]
[null,null,null,null,null,null,null,null,null,null,null,null,null,377,"認定こども園かすが森の子園","丹波市春日町国領865","（福）春日福祉会　認定こども園かすが森の子園","理事長","足立　儀明",null," "]
[null,null,null,null,null,null,null,null,null,null,null,null,null,378,"きよたき認定こども園","豊岡市日高町祢布1001の2","（福）蓼川福祉会　きよたき認定こども園","理事長","井上　正治",null," "]
[null,null,null,null,null,null,null,null,null,null,null,null,null,379,"宝山保育園","兵庫県丹波篠山市東岡屋708-2","（福）富山福祉会　","理事長","三重野　宗隆",null," "]
[null,null,null,null,null,null,null,null,null,null,null,null,null,380,"西宮セリジェ保育園","赤穂市新田1444番地","（福）桜谷福祉会","理事長","花房　八重美",null," "]
[null,null,null,null,null,null,null,null,null,null,null,null,null,381,"西北セリジェ保育園","赤穂市新田1444番地","（福）桜谷福祉会","理事長","花房　八重美",null," "]
[null,null,null,null,null,null,null,null,null,null,null,null,null,382,"保育所型認定こども園スイートキューピット保育園","明石市二見町東二見756番1","（福）コアキューピット福祉会　スイートキューピット保育園","理事長","堀井　桂子",null," "]
[null,null,null,null,null,null,null,null,null,null,null,null,null,383,"慈恵保育園","姫路市飾磨区細江2102番地","（福）慈恵福祉会","理事長","中村　滋彦",null," "]
[null,null,null,null,null,null,null,null,null,null,null,null,null,384,"みつばこども園","明石市大久保町大久保町827番1","（福）みっくす社会福祉会","理事長","神尾　勝利",null," "]
[null,null,null,null,null,null,null,null,null,null,null,null,null,385,"さわの第二保育園","明石市沢野3丁目11番地の9","（福）竹の子福祉会　さわの第二保育園","理事長","岩澤　秀章","○","④ 委任状が必要です。兵庫県保育協会のHPから様式をダウンロードして、押印の上、兵庫県保育協会あて郵送してください。"]
[null,null,null,null,null,null,null,null,null,null,null,null,null,386,"どいゆうゆう保育園","尼崎市今福1丁目2番23号","（福）来夢どいゆうゆう保育園","理事長","竹田　秀明",null," "]
[null,null,null,null,null,null,null,null,null,null,null,null,null,387,"あかし虹保育園","加古郡稲美町国安字新開1256","（福）日の出福祉会　あかし虹保育園","理事長","中田　喜久",null," "]
[null,null,null,null,null,null,null,null,null,null,null,null,null,388,"認定こども園ふたば","丹波市氷上町成松146 番地１","（福）氷上町福祉会　認定こども園ふたば","理事長","上村　行男",null," "]
[null,null,null,null,null,null,null,null,null,null,null,null,null,389,"尼崎さくら保育園","赤穂市新田1444番地","（福）桜谷福祉会","理事長","花房　八重美",null," "]
[null,null,null,null,null,null,null,null,null,null,null,null,null,390,"すばる保育園","明石市大久保町大窪3308番","（福）兵遊協社会福祉事業協力会　すばる保育園","理事長","平山　龍一",null," "]
[null,null,null,null,null,null,null,null,null,null,null,null,null,391,"浜保育園","尼崎市小中島1丁目1番18号","（福）阪神共同福祉会","理事長","中村　大蔵",null," "]
[null,null,null,null,null,null,null,null,null,null,null,null,null,392,"宝塚COCORO保育園","岡山県津山市瓜生原337-1","（福）鶯園","理事長","小林　和彦",null," "]
[null,null,null,null,null,null,null,null,null,null,null,null,null,393,"仁川ウエル保育園","大阪府豊中市箕輪2-13-12","（福）ウエル清光会　仁川ウエル保育園","理事長","小池　由久","○","④ 委任状が必要です。兵庫県保育協会のHPから様式をダウンロードして、押印の上、兵庫県保育協会あて郵送してください。"]
[null,null,null,null,null,null,null,null,null,null,null,null,null,394,"川面ちどり保育園","大阪府門真市北島町12番20号","（福）晋栄福祉会　川面ちどり保育園","理事長","濵田　和則","○","④ 委任状が必要です。兵庫県保育協会のHPから様式をダウンロードして、押印の上、兵庫県保育協会あて郵送してください。"]
[null,null,null,null,null,null,null,null,null,null,null,null,null,395,"わくわく保育園","尼崎市南塚口町8丁目7番11号","（福）いきいきのびのび","理事長","橋本　貴美男",null," "]
[null,null,null,null,null,null,null,null,null,null,null,null,null,396,"第2なすみ保育所","明石市魚住町清水353","（福）なすみ保育所","理事長","中林　加代子",null," "]
[null,null,null,null,null,null,null,null,null,null,null,null,null,397,"神戸住吉保育園","姫路市勝原区宮田143-3","（福）勝原福祉会","理事長","梅野　高明",null," "]
[null,null,null,null,null,null,null,null,null,null,null,null,null,398,"若宮保育園","神戸市須磨区白川台4丁目20-20","（福）あじさい会　","理事長","池上　勝義","○","④ 委任状が必要です。兵庫県保育協会のHPから様式をダウンロードして、押印の上、兵庫県保育協会あて郵送してください。"]
[null,null,null,null,null,null,null,null,null,null,null,null,null,399,"琵琶COCORO保育園","岡山県津山市瓜生原337番地1","（福）鶯園　","理事長","小林　和彦","※変更予定"," "]
[null,null,null,null,null,null,null,null,null,null,null,null,null,400,"たかとりちどり保育園","大阪府門真市北島町12番20号","（福）晋栄福祉会　たかとりちどり保育園","理事長","濵田　和則",null," "]
[null,null,null,null,null,null,null,null,null,null,null,null,null,401,"神戸元町ちどり保育園","大阪府門真市北島町12番20号","（福）晋栄福祉会　神戸元町ちどり保育園","理事長","濵田　和則",null," "]
[null,null,null,null,null,null,null,null,null,null,null,null,null,402,"認定こども園武庫庄保育園","尼崎市武庫之荘本町3丁目22-22","（福）福進福祉会　","理事長","西村　隆昭",null," "]
[null,null,null,null,null,null,null,null,null,null,null,null,null,403,"幼保連携型認定こども園野の花こども園","姫路市広畑区才850-1","（福）子どもの家福祉会","理事長","赤西　雅之",null," "]
[null,null,null,null,null,null,null,null,null,null,null,null,null,404,"孔雀こども園","加古川市野口町北野字南川161番地","（福）大瑠会　","理事長","大野　裕史",null," "]
[null,null,null,null,null,null,null,null,null,null,null,null,null,405,"はおとの森こども園","姫路市大津区吉美780","（福）幸","理事長","金治　ゆかり","○","④ 委任状が必要です。兵庫県保育協会のHPから様式をダウンロードして、押印の上、兵庫県保育協会あて郵送してください。"]
[null,null,null,null,null,null,null,null,null,null,null,null,null,406,"さんだのもり保育園","宝塚市山本西1丁目4番1号","（福）サン福祉会","理事長","山田　慎治",null," "]
[null,null,null,null,null,null,null,null,null,null,null,null,null,407,"認定こども園あおば保育園","加古川市加古川町河原228-1","（福）夢の会","理事長","勝亦　正昭",null," "]
[null,null,null,null,null,null,null,null,null,null,null,null,null,408,"清心緑が丘認定こども園","三木市緑が丘町東2-5-1","（福）正志会　清心認定こども園","理事長","北芝　美代子",null," "]
[null,null,null,null,null,null,null,null,null,null,null,null,null,409,"二葉にじいろこども園","揖保郡太子町太田2052","（福）二葉保育園　二葉にじいろこども園","理事長","都築　史典",null," "]
[null,null,null,null,null,null,null,null,null,null,null,null,null,410,"モーツァルトりた保育園","京都府京都市伏見区深草泓ノ壺町37-1","（福）フジの会　モーツァルトりた保育園","理事長","砂川　靖子",null," "]
[null,null,null,null,null,null,null,null,null,null,null,null,null,411,"ほうこく保育園","姫路市飾磨区今在家941","（福）宝国洗心会","理事長","筑波　晃英",null," "]
[null,null,null,null,null,null,null,null,null,null,null,null,null,412,"幼保連携型認定こども園フェニックス大久保こども園","神戸市西区伊川谷町上脇字平山952番1","（福）和光福祉会","理事長","平井　昭博",null," "]
[null,null,null,null,null,null,null,null,null,null,null,null,null,413,"魚住保育園","明石市魚住町西岡370-1","（福）喜栄会　魚住保育園","理事長","福井　章太",null," "]
[null,null,null,null,null,null,null,null,null,null,null,null,null,414,"ろっこうARIMA保育園","神戸市北区有馬町1644","（福）有馬福祉会　","理事長","寺林　徹",null," "]
[null,null,null,null,null,null,null,null,null,null,null,null,null,415,"浜つばめ保育園","尼崎市小中島1丁目1番18号","（福）阪神共同福祉会　","理事長","中村　大蔵",null," "]
[null,null,null,null,null,null,null,null,null,null,null,null,null,416,"幼保連携型認定こども園キンダー・メーソン","尼崎市武庫元町2-20-15 ","（福）坂田福祉会幼保連携型認定こども園キンダー・メーソン","理事長","岡田　弘子",null," "]
[null,null,null,null,null,null,null,null,null,null,null,null,null,417,"加古川エンゼル保育園","加古川市野口町長砂245-1","（福）加古川エンゼル保育園","理事長","辻田　重恵",null," "]
[null,null,null,null,null,null,null,null,null,null,null,null,null,418,"一宮ひかり保育所","宍粟市一宮町安積1343番地の1","（福）一宮福祉会","理事長","畑尾　清人","○","④ 委任状が必要です。兵庫県保育協会のHPから様式をダウンロードして、押印の上、兵庫県保育協会あて郵送してください。"]
[null,null,null,null,null,null,null,null,null,null,null,null,null,419,"認定こども園いくさと","丹波市氷上町成松146番地1","（福）氷上町福祉会　認定こども園いくさと","理事長","上村　行男",null," "]
[null,null,null,null,null,null,null,null,null,null,null,null,null,420,"認定こども園ぬぬぎ","丹波市氷上町成松146番地1","（福）氷上町福祉会　認定こども園ぬぬぎ","理事長","上村　行男",null," "]
[null,null,null,null,null,null,null,null,null,null,null,null,null,421,"かにがさか保育園","明石市和坂1丁目15番1号","（福）和坂福祉会　","理事長","林谷　文子",null," "]
[null,null,null,null,null,null,null,null,null,null,null,null,null,422,"妻鹿みどりこども園","姫路市飾東町八重畑1010","（福）谷内福祉会","理事長","角谷　幸子",null," "]
[null,null,null,null,null,null,null,null,null,null,null,null,null,423,"ABCみかげ保育園","多可郡多可町加美区多田430-10","（福）千ヶ峰会　ABCみかげ保育園","理事長","中井　一仁",null," "]
[null,null,null,null,null,null,null,null,null,null,null,null,null,424,"幼保連携型認定こども園瑠璃よこはまこども園","姫路市網干区大江島寺前町120-2","（福）東光学舎福祉会","理事長","正木　竜哉",null," "]
[null,null,null,null,null,null,null,null,null,null,null,null,null,425,"ricco保育園","明石市大久保町谷八木1313番地","（福）ウィステリア","理事長","藤田　勇",null," "]
[null,null,null,null,null,null,null,null,null,null,null,null,null,426,"認定こども園白鷺園保育所","姫路市御立北3丁目17番1号","（福）白鷺園","理事長","紺谷　清春",null," "]
[null,null,null,null,null,null,null,null,null,null,null,null,null,427,"かしの木こども園","尼崎市開明町3丁目22番地","（福）樫の木会 かしの木こども園","理事長","野村　佳生",null," "]
[null,null,null,null,null,null,null,null,null,null,null,null,null,428,"青葉台こども園","姫路市香寺町須加院351","（福）青葉台福祉会","理事長","村上　章一",null," "]
[null,null,null,null,null,null,null,null,null,null,null,null,null,429,"延命保育園","姫路市御国野町御着954-2","（宗）延命寺　延命保育園","代表役員","茂渡　恵仙",null," "]
[null,null,null,null,null,null,null,null,null,null,null,null,null,430,"幼保連携型認定こども園ルナキューピットこども園","加古郡播磨町北本荘6丁目9番11号","（福）キューピット福祉会　","理事長","堀井　桂子",null," "]
[null,null,null,null,null,null,null,null,null,null,null,null,null,431,"若葉保育園","尼崎市東難波町4丁目7-3","（福）光寿会　若葉保育園","理事長","宏林　寿子",null," "]
[null,null,null,null,null,null,null,null,null,null,null,null,null,432,"幼保連携型認定こども園ベビー・メーソン","尼崎市武庫元町2-20-15 ","（福）坂田福祉会　幼保連携型認定こども園ベビーメーソン","理事長","岡田　弘子",null," "]
[null,null,null,null,null,null,null,null,null,null,null,null,null,433,"開明かしの木こども園","尼崎市開明町3丁目22番地","（福）樫の木会　開明かしの木こども園","理事長","野村　佳生",null," "]
[null,null,null,null,null,null,null,null,null,null,null,null,null,434,"心音つばさ保育園","大阪府河内長野市小山田町448番地の2","（福）博光福祉会　","理事長","桐山　博",null," "]
[null,null,null,null,null,null,null,null,null,null,null,null,null,435,"フルーツバスケット保育園","明石市大久保町西脇356-1","（福）明育","理事長","高岸　益子",null," "]
[null,null,null,null,null,null,null,null,null,null,null,null,null,436,"うみの風こども園","明石市小久保4丁目5番1号","（福）明薫会","理事長","佐々木　薫",null," "]
[null,null,null,null,null,null,null,null,null,null,null,null,null,437,"光認定こども園","加古川市平岡町土山字川池423-9","（福）太子福祉会　光認定こども園","理事長","入吉　優美",null," "]
[null,null,null,null,null,null,null,null,null,null,null,null,null,438,"認定こども園こどものその保育園","高砂市曽根町788-1","（福）曽根サクラ園","理事長","西澤　他喜衛",null," "]
[null,null,null,null,null,null,null,null,null,null,null,null,null,439,"一麦保育園","神戸市中央区吾妻通5-2-20","（福）イエス団　一麦保育園","理事長","神﨑　清一",null," "]
[null,null,null,null,null,null,null,null,null,null,null,null,null,440,"武庫川女子大学附属保育園","西宮市池開町６－４６","（学）武庫川学院　武庫川女子大学附属保育園","理事長","大河原　量",null," "]
[null,null,null,null,null,null,null,null,null,null,null,null,null,441,"西宮北口こどもの園","南あわじ市松帆高屋乙192番地","社会福祉法人　みかり会","理事長","谷村　誠"]
[null,null,null,null,null,null,null,null,null,null,null,null,null,442,"北おうじ虹こども園","加古郡稲美町国安字新開1256","（福）日の出福祉会","理事長","中田　喜久",null," "]
[null,null,null,null,null,null,null,null,null,null,null,null,null,443,"Alice Preschool","明石市中朝霧丘8-33","（福）福禄会","理事長","小林　豊佳",null," "]
[null,null,null,null,null,null,null,null,null,null,null,null,null,444,"認定こども園キッズランドかみ","多可郡多可町中区安坂499番地","（福）鳳凰福祉会","理事長","清水谷　善道",null," "]
[null,null,null,null,null,null,null,null,null,null,null,null,null,445,"認定こども園キッズランドやちよ","多可郡多可町八千代区俵田111-27","（福）楽久園会","理事長","上野　仁久",null," "]
[null,null,null,null,null,null,null,null,null,null,null,null,null,446,"カレナ認定こども園","加古川市平岡町土山字川池423-9","（福）太子福祉会　幼保連携型カレナ認定保育園　","理事長","入吉　優美",null," "]
[null,null,null,null,null,null,null,null,null,null,null,null,null,447,"認定こども園ミライズにじ","丹波市柏原町柏原4583番地1","（福）柏翔会","理事長","大野　亮祐",null," "]
[null,null,null,null,null,null,null,null,null,null,null,null,null,448,"認定こども園ミライズそら","丹波市柏原町柏原4583番地1","（福）柏翔会","理事長","大野　亮祐",null," "]
[null,null,null,null,null,null,null,null,null,null,null,null,null,449,"認定こども園ゆりのきCOCORO","岡山県津山市瓜生原337番地1","（福）鶯園","理事長","小林　和彦",null," "]
[null,null,null,null,null,null,null,null,null,null,null,null,null,450,"幼保連携型認定こども園明石こども園","姫路市勝原区宮田143-3","（福）勝原福祉会","理事長","梅野　高明",null," "]
[null,null,null,null,null,null,null,null,null,null,null,null,null,451,"幼保連携型認定こども園高須の森","南あわじ市松帆高屋乙192番地","社会福祉法人　みかり会","理事長","谷村　誠",null," "]
[null,null,null,null,null,null,null,null,null,null,null,null,null,452,"あおい宙東灘保育園","川西市久代6-1-90","（福）友朋会　あおい宙東灘保育園","理事長","藤澤　徹",null," "]
[null,null,null,null,null,null,null,null,null,null,null,null,null,453,"石屋川COCORO保育園","岡山県津山市瓜生原337番地1","（福）鶯園　","理事長","小林　和彦",null," "]
[null,null,null,null,null,null,null,null,null,null,null,null,null,454,"誠佛保育園","神戸市灘区徳井町5丁目1-24","（宗）誠照寺　誠佛保育園","代表役員","末永　信岳","○","④ 委任状が必要です。兵庫県保育協会のHPから様式をダウンロードして、押印の上、兵庫県保育協会あて郵送してください。"]
[null,null,null,null,null,null,null,null,null,null,null,null,null,455,"神戸灘Ohana保育園","神戸市中央区栄町通6丁目1-10","（福）豊益会　灘Ohana保育園","理事長","藤尾　亜也子",null," "]
[null,null,null,null,null,null,null,null,null,null,null,null,null,456,"幼保連携型認定こども園モーツァルトパーク＆ライドこども園","京都府京都市伏見区深草泓ノ壺町37-1　","（福）フジの会　モーツァルトパーク＆ライド保育園","理事長","砂川　靖子",null," "]
[null,null,null,null,null,null,null,null,null,null,null,null,null,457,"大社幸和園","西宮市中須佐町3-36","（福）幸和園　大社幸和園","理事長","増川　隆一",null," "]
[null,null,null,null,null,null,null,null,null,null,null,null,null,458,"ニコニコ桜今津灯保育園","西宮市南郷町8-12","（福）長陽会","理事長","長部　俊弘",null," "]
[null,null,null,null,null,null,null,null,null,null,null,null,null,459,"幼保連携型認定こども園明石あすのこども園","姫路市広畑区才850-1","（福）子どもの家福祉会","理事長","赤西　雅之",null," "]
[null,null,null,null,null,null,null,null,null,null,null,null,null,460,"南清水保育園","尼崎市小中島1丁目1番18号","（福）阪神共同福祉会","理事長","中村　大蔵",null," "]
[null,null,null,null,null,null,null,null,null,null,null,null,null,461,"聖隷こども園夢舞台","静岡県浜松市中央区元城町218-26","（福）聖隷福祉事業団　聖隷こども園夢舞台","理事長","青木　善治",null," "]
[null,null,null,null,null,null,null,null,null,null,null,null,null,462,"伊丹ひまわりこども園","伊丹市昆陽池1-39","（福）友愛福祉会　伊丹ひまわりこども園","理事長","池川　正也",null," "]
[null,null,null,null,null,null,null,null,null,null,null,null,null,463,"ぽっかぽっかにっけ保育園","加古川市加古川町本町239番地の1","（株）ニッケナーサリー","代表取締役","竹内　進之助",null," "]
[null,null,null,null,null,null,null,null,null,null,null,null,null,464,"認定こども園あそびの丘","たつの市揖保川町二塚385の1","（福）こどもの国","理事長","堀　良尚",null," "]
[null,null,null,null,null,null,null,null,null,null,null,null,null,465,"ricco六甲保育園","明石市大久保町谷八木1313番地","（福）ウィステリア","理事長","藤田　勇",null," "]
[null,null,null,null,null,null,null,null,null,null,null,null,null,466,"名谷フォレスト保育園","神戸市北区日の峰1丁目20-1","（福）翠福祉会　名谷フォレスト保育園","理事長","豊田　則子",null," "]
[null,null,null,null,null,null,null,null,null,null,null,null,null,467,"幼保連携型認定こども園　彩の森","南あわじ市松帆高屋乙192番地","社会福祉法人　みかり会","理事長","谷村　誠",null," "]
[null,null,null,null,null,null,null,null,null,null,null,null,null,468,"認定こども園 このみ保育園","姫路市豊富町御蔭3278番地の57","（福）豊富台福祉会","理事長","小野　浩誠",null," "]
[null,null,null,null,null,null,null,null,null,null,null,null,null,469,"トレジャーキッズにしなだ保育園","大阪府大阪市北区堂島1-5-17堂島グランドビル8階","（株）セリオ","代表取締役","平田　敬",null," "]
[null,null,null,null,null,null,null,null,null,null,null,null,null,470,"みらい保育園","加古郡播磨町東本荘1丁目13番7号","（福）播磨福祉会","理事長","髙島　安郎",null," "]
[null,null,null,null,null,null,null,null,null,null,null,null,null,471,"西宮さんしょ保育園","南あわじ市沼島2484番地","（福）西光寺和順会","理事長","寺川　光信",null," "]
[null,null,null,null,null,null,null,null,null,null,null,null,null,472,"鈴ノ音つばさ保育園","大阪府河内長野市小山田町448番地の2","（福）博光福祉会　","理事長","桐山　博",null," "]
[null,null,null,null,null,null,null,null,null,null,null,null,null,473,"とまつゆうゆう保育園","尼崎市今福1丁目2番23号","（福）来夢　とまつゆうゆう保育園","理事長","竹田　秀明",null," "]
[null,null,null,null,null,null,null,null,null,null,null,null,null,474,"松風認定こども園","姫路市紺屋町97番地玉田ビル2F","（福）道心　","理事長","永井　快俊","○","④ 委任状が必要です。兵庫県保育協会のHPから様式をダウンロードして、押印の上、兵庫県保育協会あて郵送してください。"]
[null,null,null,null,null,null,null,null,null,null,null,null,null,475,"めいなん虹保育園","加古郡稲美町国安字新開1256","（福）日の出福祉会","理事長","中田　喜久",null," "]
[null,null,null,null,null,null,null,null,null,null,null,null,null,476,"うわがいけ保育園","明石市和坂1丁目15番1号","（福）和坂福祉会","理事長","林谷　文子",null," "]
[null,null,null,null,null,null,null,null,null,null,null,null,null,477,"幼保連携型認定こども園はたつかこども園","神戸市灘区篠原北町4丁目8番1号","（福）同朋福祉会　幼保連携型認定こども園　はたつかこども園","理事長","梅木　澄代",null," "]
[null,null,null,null,null,null,null,null,null,null,null,null,null,478,"カナリアこども園","神戸市北区鈴蘭台南町1-4-40","（福）すずらんだい福祉会","理事長","阿部　能英",null," "]
[null,null,null,null,null,null,null,null,null,null,null,null,null,479,"育ヶ丘保育園","小野市育ヶ丘町1481-100","（福）育ヶ丘福祉会","理事長","安本　明",null," "]
[null,null,null,null,null,null,null,null,null,null,null,null,null,480,"北条東すみれこども園　","加西市西笠原町字大谷178番地115","（福）無量会　北条東すみれこども園","理事長","永井　秀世",null," "]
[null,null,null,null,null,null,null,null,null,null,null,null,null,481,"めいまいピーノこども園","神戸市垂水区狩口台５－１４－１","（学）和弘学園めいまいピーノこども園","理事長","中後　和子",null," "]
[null,null,null,null,null,null,null,null,null,null,null,null,null,482,"同朋わくわく園","神戸市灘区篠原北町4丁目8番1号","（福）同朋福祉会　同朋わくわく園","理事長","梅木　澄代",null," "]
[null,null,null,null,null,null,null,null,null,null,null,null,null,483,"生瀬ぽぽこども園","西宮市東山台1丁目106-2","（福）ほっとスマイル","理事長","東野　弘美",null," "]
[null,null,null,null,null,null,null,null,null,null,null,null,null,484,"認定保育所　舞多聞そらの保育園","神戸市垂水区舞多聞西6丁目1番3号","（株）サンウッド","代表取締役","砂川　嘉人",null," "]
[null,null,null,null,null,null,null,null,null,null,null,null,null,485,"幼保連携型認定いつくしみこども園 ","神戸市北区道場町日下部1615-3","（福）慈盈会","理事長","榊原　眞理子",null," "]
[null,null,null,null,null,null,null,null,null,null,null,null,null,486,"いせ虹こども園","加古郡稲美町国安字新開1256","（福）日の出福祉会","理事長","中田　喜久",null," "]
[null,null,null,null,null,null,null,null,null,null,null,null,null,487,"幼保連携型認定こども園ひかり保育園","西宮市小松西町2丁目6番30号","（福）三光事業団　","理事長","側垣　一也","○","④ 委任状が必要です。兵庫県保育協会のHPから様式をダウンロードして、押印の上、兵庫県保育協会あて郵送してください。"]
[null,null,null,null,null,null,null,null,null,null,null,null,null,488,"幼保連携型認定こども園打出ひだまりこども園","神戸市東灘区北青木1丁目1番3号","（福）千種会　打出保育所","理事長","岸本　多佳子",null," "]
[null,null,null,null,null,null,null,null,null,null,null,null,null,489,"よかわ認定こども園","三木市口吉川町大島854番地","（福）白水会","理事長","小紫　昭子",null," "]
[null,null,null,null,null,null,null,null,null,null,null,null,null,490,"幼保連携型認定こども園　海岸通りあすのこども園","姫路市広畑区才850-1","（福）子どもの家福祉会","理事長","赤西　雅之",null," "]
[null,null,null,null,null,null,null,null,null,null,null,null,null,491,"おもと保育園","宝塚市中筋6丁目16-13","（福）萬年青友の会　おもと保育園","理事長","三重野　宗隆",null," "]
[null,null,null,null,null,null,null,null,null,null,null,null,null,492,"認定こども園あおい宙川西","川西市久代6-1-90","（福）友朋会　認定こども園あおい宙川西","理事長","藤澤 　徹",null," "]
[null,null,null,null,null,null,null,null,null,null,null,null,null,493,"御影COCORO保育園","岡山県津山市瓜生原337番地1","（福）鶯園　","理事長","小林　和彦",null," "]
[null,null,null,null,null,null,null,null,null,null,null,null,null,494,"幼保連携型認定こども園　ポートピア","神戸市東灘区住吉宮町3丁目4番17号","（福）二人同心会　幼保連携型認定こども園ポートピア","理事長","奥平　浩太郎",null," "]
[null,null,null,null,null,null,null,null,null,null,null,null,null,495,"幼保連携型認定こども園　桜の宮こども園","神戸市西区神出町五百蔵142-400","（福）雄岡山福祉会　幼保連携型認定こども園　桜の宮こども園","理事長","総毛　祐治",null," "]
[null,null,null,null,null,null,null,null,null,null,null,null,null,496,"幼保連携型認定こども園アマーレ・サンこども園","宝塚市山本西1丁目4番1号","（福）サン福祉会　","理事長","山田　愼治",null," "]
[null,null,null,null,null,null,null,null,null,null,null,null,null,497,"モーツァルト下山手保育園","京都府京都市伏見区深草泓ノ壺町37-1　","（福）フジの会　モーツァルト下山手保育園","理事長","砂川　靖子",null," "]
[null,null,null,null,null,null,null,null,null,null,null,null,null,498,"認定こども園おおの","洲本市大野740-1","（福）大野福祉会","理事長","上谷　幸子","〇","④ 委任状が必要です。兵庫県保育協会のHPから様式をダウンロードして、押印の上、兵庫県保育協会あて郵送してください。"]
[null,null,null,null,null,null,null,null,null,null,null,null,null,499,"あゆみ保育園","芦屋市東山町30-3","（福）芦屋あゆみ会","理事長","飯田　眞美","○","④ 委任状が必要です。兵庫県保育協会のHPから様式をダウンロードして、押印の上、兵庫県保育協会あて郵送してください。"]
[null,null,null,null,null,null,null,null,null,null,null,null,null,500,"川西共同保育園","川西市小戸３丁目12-10","（福）虹の子会","理事長","正木　みどり",null," "]
[null,null,null,null,null,null,null,null,null,null,null,null,null,501,"エミリア・サンこども園","宝塚市山本西1丁目4番1号","（福）サン福祉会　","理事長","山田　愼治","○","④ 委任状が必要です。兵庫県保育協会のHPから様式をダウンロードして、押印の上、兵庫県保育協会あて郵送してください。"]
[null,null,null,null,null,null,null,null,null,null,null,null,null,502,"認定こども園はなえみ保育園","姫路市豊富町御蔭3278番地の57","（福）豊富台福祉会","理事長","小野　浩誠",null," "]
[null,null,null,null,null,null,null,null,null,null,null,null,null,503,"クレア・サン保育園","宝塚市山本西1丁目4番1号","（福）サン福祉会　","理事長","山田　愼治","○","④ 委任状が必要です。兵庫県保育協会のHPから様式をダウンロードして、押印の上、兵庫県保育協会あて郵送してください。"]
[null,null,null,null,null,null,null,null,null,null,null,null,null,504,"幼保連携型認定こども園神戸ゆたか園","神戸市中央区栄町通6丁目1-10","（福）豊益会","理事長","藤尾　益也",null," "]
[null,null,null,null,null,null,null,null,null,null,null,null,null,505,"明照認定こども園","神戸市中央区脇浜町2丁目5-13","（福）みのり福祉会","理事長","黒川　泰代",null," "]
[null,null,null,null,null,null,null,null,null,null,null,null,null,506,"あさかこども園","多可郡多可町中区安坂499","（福）鳳凰福祉会","理事長","清水谷　善道",null," "]
[null,null,null,null,null,null,null,null,null,null,null,null,null,507,"二宮保育園","神戸市中央区吾妻通5-2-20","（福）イエス団　二宮保育園","理事長","神﨑　清一",null," "]
[null,null,null,null,null,null,null,null,null,null,null,null,null,508,"七松保育園","尼崎市武庫之荘本町3丁目22-22","（福）福進福祉会","理事長","西村　隆昭",null," "]
[null,null,null,null,null,null,null,null,null,null,null,null,null,509,"大東保育所","宝塚市山本西１丁目4番1号","（福）サン福祉会　","理事長","山田　愼治",null," "]
[null,null,null,null,null,null,null,null,null,null,null,null,null,510,"日野こども園","西脇市西田町5-1","（福）日野","理事長","多井　浩",null," "]
[null,null,null,null,null,null,null,null,null,null,null,null,null,511,"幼保連携型認定こども園聖ミカエル兵庫幼稚園","神戸市兵庫区吉田町1丁目1番1号","学校法人聖ミカエル兵庫幼稚園","理事長","綱本　慎一",null," "]
[null,null,null,null,null,null,null,null,null,null,null,null,null,512,"ricco園田保育園","明石市大久保町谷八木1313番地","社会福祉法人ウィステリア","理事長","藤田　勇",null," "]
[null,null,null,null,null,null,null,null,null,null,null,null,null,513,"神崎認定こども園","姫路市紺屋町97番地玉田ビル2F","社会福祉法人道心　神崎認定こども園","理事長","永井　快俊",null," "]
[null,null,null,null,null,null,null,null,null,null,null,null,null,514,"聖ミカエル幼保連携型認定こども園","神戸市中央区中山手通6丁目5番1号","社会福祉法人聖ミカエル福祉会","理事長","藤本　重美",null," "]
[null,null,null,null,null,null,null,null,null,null,null,null,null,515,"聖ミカエル北野園","神戸市中央区中山手通6丁目5番1号","社会福祉法人聖ミカエル福祉会","理事長","藤本　重美",null," "]
[null,null,null,null,null,null,null,null,null,null,null,null,null,516,"保育所型認定こども園プリマキューピット保育園","明石市二見町東二見756番1","社会福祉法人コアキューピット福祉会　プリマキューピット保育園","理事長","堀井　桂子",null," "]
[null,null,null,null,null,null,null,null,null,null,null,null,null,517,"第2はとのさと保育園","加古川市加古川町南備後317番地","社会福祉法人はとのさと福祉会","理事長","尾野　義彦",null," "]
[null,null,null,null,null,null,null,null,null,null,null,null,null,518,"認定こども園みなとじまCOCORO","岡山県津山市瓜生原337-1","社会福祉法人鶯園","理事長","小林　和彦",null," "]
[null,null,null,null,null,null,null,null,null,null,null,null,null,519,"加古のみやこども園","姫路市広畑区才850-1","社会福祉法人子どもの家福祉会","理事長","赤西　雅之",null," "]
[null,null,null,null,null,null,null,null,null,null,null,null,null,520,"加古のうみこども園","姫路市広畑区才850-1","社会福祉法人子どもの家福祉会","理事長","赤西　雅之",null," "]
[null,null,null,null,null,null,null,null,null,null,null,null,null,521,"幼保連携型認定こども園　幼児学舎　子どもライブラリー","姫路市広畑区才850-1","社会福祉法人子どもの家福祉会","理事長","赤西　雅之",null," "]
[null,null,null,null,null,null,null,null,null,null,null,null,null,522,"川西仏光こども園","たつの市揖保川町山津屋67-2","社会福祉法人めぐみ会","理事長","堀　正昭",null," "]
[null,null,null,null,null,null,null,null,null,null,null,null,null,523,"小野こども園","小野市黒川町478番地の4","社会福祉法人小野保育所","理事長","岸本　陽二郎",null," "]
[null,null,null,null,null,null,null,null,null,null,null,null,null,524,"ポエムキューピットこども園","加古郡播磨町北本荘6丁目9番11号","社会福祉法人キューピット福祉会","理事長","堀井　桂子","○","④ 委任状が必要です。兵庫県保育協会のHPから様式をダウンロードして、押印の上、兵庫県保育協会あて郵送してください。"]
[null,null,null,null,null,null,null,null,null,null,null,null,null,525,"そらとはな保育園","宝塚市中筋6丁目16-13","社会福祉法人萬年青友の会","理事長","三重野　宗隆",null," "]
[null,null,null,null,null,null,null,null,null,null,null,null,null,526,"くりの木保育園","多可郡多可町中区曽我井896-7","社会福祉法人ときわぎ会","理事長","岡原　崇昭"]
[null,null,null,null,null,null,null,null,null,null,null,null,null,527,"新伊丹そらいろ保育園","札幌市北区新琴似12条10丁目3番17号","学校法人幌北学園","理事長","對木　克彦"]
[null,null,null,null,null,null,null,null,null,null,null,null,null,528,"幼保連携型認定こども園段上保育園","西宮市段上町2丁目10番19号","社会福祉法人阪急福祉会","理事長","松本　千歳","○","④ 委任状が必要です。兵庫県保育協会のHPから様式をダウンロードして、押印の上、兵庫県保育協会あて郵送してください。"]
[null,null,null,null,null,null,null,null,null,null,null,null,null,529,"バラホーム保育所","宝塚市小林2-12-34","社会福祉法人ソフィア福祉会　バラホーム保育所","理事長","江﨑　祀枝"]
[null,null,null,null,null,null,null,null,null,null,null,null,null,530,"幼保連携型認定こども園播磨灘こども園","姫路市広畑区才850-1","社会福祉法人子どもの家福祉会","理事長","赤西　雅之"]
[null,null,null,null,null,null,null,null,null,null,null,null,null,531,"荒川ひまわり保育園","姫路市書写634番地198","社会福祉法人よい子の広場福祉会","理事長","田靡　仁志"]
[null,null,null,null,null,null,null,null,null,null,null,null,null,532,"幼保連携型認定こども園加古川こども園","姫路市広畑区才850-1","社会福祉法人子どもの家福祉会","理事長","赤西　雅之"]
[null,null,null,null,null,null,null,null,null,null,null,null,null,533,"認定こども園Moluccella Luna","尼崎市若王寺2-14-7","社会福祉法人喜左ヱ門","理事長","岡村　泰玄"]
[null,null,null,null,null,null,null,null,null,null,null,null,null,534,"認定こども園Moluccella Aina","尼崎市若王寺2-14-7","社会福祉法人喜左ヱ門","理事長","岡村　泰玄"]

{"sheet":"請求書","index":1,"n_rows":33,"n_cols":9,"rows_kept":33,"cut":false,"hidden":false,"merged":[[49,1,49,6],[22,2,22,5],[31,2,31,7],[23,2,23,8],[32,2,32,7],[46,1,46,6],[47,1,47,6],[15,6,15,7],[26,2,26,7],[27,2,27,7],[28,2,28,7],[30,2,30,7]]}
[null,"（入力不要・確認のみ）"]
["　・　この様式は入力していただく必要はありません。「入力用シート」に必要項目を入力いただければ自動的に"]
["　　転記されるよう数式を設定してあります。必ず「入力用シート」に必要項目を入力してください。"]
[]
[]
[null,null,null,null,null,null,null,null,{"$f":"入力用シート!D5","v":0}]
["（様式２号）"]
[]
["　　　　　　　　　　　　　　　　　　　　　　　　　　　　",null,null," 請　　求　　書"]
[]
[null,null,null,"金",{"$f":"'別紙1-2'!B10","v":{"$error":"#N/A"}},"円"]
[]
[]
[null,"　　ただし、令和８年度乳幼児子育て応援事業委託料として、上記のとおり請求します。"]
[]
[null,null,null,null,null,null,"2027-04-10"]
[]
[]
[]
[]
[null,"兵庫県知事　様"]
[]
[null,"請　求　者　住　所　",{"$f":"IF(入力用シート!$D$17=\"ある\",入力用シート!$D$23,入力用シート!$D$12)","v":0}]
[null,"　　　　　　名　称",{"$f":"IF(入力用シート!$D$17=\"ある\",入力用シート!$D$20,入力用シート!$D$9)","v":0},{"$f":"IF(入力用シート!E27=\"ある\",入力用シート!#REF!,入力用シート!E20)","v":0},{"$f":"IF(入力用シート!F27=\"ある\",入力用シート!#REF!,入力用シート!F20)","v":0},{"$f":"IF(入力用シート!G27=\"ある\",入力用シート!#REF!,入力用シート!G20)","v":0},{"$f":"IF(入力用シート!H26=\"ある\",入力用シート!H31,入力用シート!H20)","v":0},{"$f":"IF(入力用シート!I26=\"ある\",入力用シート!I31,入力用シート!I20)","v":0},{"$f":"IF(入力用シート!J26=\"ある\",入力用シート!J31,入力用シート!J20)","v":0}]
[null,"　　　　　　代表者",{"$f":"IF(入力用シート!$D$17=\"ある\",入力用シート!$D$21,入力用シート!$D$10)","v":0},null,{"$f":"IF(入力用シート!$D$17=\"ある\",入力用シート!$D$22,入力用シート!$D$11)","v":0}]
[]
[null,"発行責任者　氏　名　",{"$f":"入力用シート!B28","v":0}]
[null,"　　　　　　電　話　",{"$f":"入力用シート!D28","v":0}]
[null,"　　　　　　メール　",{"$f":"入力用シート!G28","v":0}]
[]
[null,"担　当　者　氏　名　",{"$f":"入力用シート!B31","v":0}]
[null,"　　　　　　電　話　",{"$f":"入力用シート!D31","v":0}]
[null,"　　　　　　メール　",{"$f":"入力用シート!G31","v":0}]

{"sheet":"様式1号","index":2,"n_rows":42,"n_cols":11,"rows_kept":42,"cut":false,"hidden":false,"merged":[[8,8,8,10],[12,6,12,10],[14,6,14,10],[46,1,46,11],[16,2,16,10],[47,1,47,11],[49,1,49,11],[20,6,20,11],[43,1,43,11],[44,1,44,11],[45,1,45,11]]}
[null,"（入力不要・確認のみ）"]
["　・　この様式は入力していただく必要はありません。「入力用シート」に必要項目を入力いただければ自動的に"]
["　　転記されるよう数式を設定してあります。必ず「入力用シート」に必要項目を入力してください。"]
[]
[]
[null,null,null,null,null,null,null,null,null,null,{"$f":"入力用シート!D5","v":0}]
["（様式１号）"]
[]
["　　　　　　　　　　　　　　　　　　　　　　　　　　　　",null,null,null,null,null,null,null,{"$f":"請求書!G16","v":"2027-04-10"}]
[]
["　兵 庫 県 知 事　　 様"]
[]
[]
[]
[null,"（受託者所在地）",{"$f":"IF(入力用シート!$D$17=\"ある\",入力用シート!$D$23,入力用シート!$D$12)","v":0}]
[]
[null,"（受託団体名称）",{"$f":"IF(入力用シート!$D$17=\"ある\",入力用シート!$D$20,入力用シート!$D$9)","v":0},{"$f":"IF(入力用シート!E19=\"ある\",入力用シート!E24,入力用シート!E13)","v":0},{"$f":"IF(入力用シート!F19=\"ある\",入力用シート!F24,入力用シート!F13)","v":0},{"$f":"IF(入力用シート!G19=\"ある\",入力用シート!G24,入力用シート!G13)","v":0},{"$f":"IF(入力用シート!H19=\"ある\",入力用シート!H24,入力用シート!H13)","v":0},{"$f":"IF(入力用シート!I19=\"ある\",入力用シート!I24,入力用シート!I13)","v":0},{"$f":"IF(入力用シート!J19=\"ある\",入力用シート!J24,入力用シート!J13)","v":0}]
[]
[null,"（受託代表者職氏名）",{"$f":"IF(入力用シート!$D$17=\"ある\",入力用シート!$D$21,入力用シート!$D$10)","v":0},null,{"$f":"IF(入力用シート!$D$17=\"ある\",入力用シート!$D$22,入力用シート!$D$11)","v":0}]
[]
[]
[]
[null,null,"令和８年度乳幼児子育て応援事業完了報告書"]
[]
[]
[null,"　　　　　　標記の事業が完了しましたので、下記の関係書類を添えて提出します。"]
[]
[]
[]
[]
[null,null,null,null,"記"]
[]
[]
["１","委託料精算調書（別紙１関係）"]
[null," (１)委託料精算調書(総括表) ・・・・別紙１－１"]
[null," (２)箇所別明細書 ・・・・・別紙１－２"]
[]
["２","事業実施状況報告書（別紙２関係）"]
[null," (３)乳幼児子育て応援事業 ・・・・・別紙２"]
[]
["   "]
["３","その他参考となるもの"]

{"sheet":"別紙1-1","index":3,"n_rows":21,"n_cols":7,"rows_kept":21,"cut":false,"hidden":false,"merged":[[42,1,42,11],[43,1,43,11],[45,1,45,11],[8,8,8,10],[19,1,19,5]]}
[null,"（入力不要・確認のみ）"]
["　・　この様式は入力していただく必要はありません。「入力用シート」に必要項目を入力いただければ自動的に"]
["　　転記されるよう数式を設定してあります。必ず「入力用シート」に必要項目を入力してください。"]
[]
[]
[]
["（別紙１－１）",null,null,null,null,null,{"$f":"入力用シート!D5","v":0}]
[]
["　　　　　　　　　　　　　　　　　　　　　　　　　　　　"]
[null,"委託料精算調書（総括表）"]
[null,null,null,null,null,"（単位：円）"]
[null,"事業名","契約金額","実績額","実績内訳","備考"]
[null,"乳幼児子育て応援事業",{"$f":"'別紙1-2'!B10","v":{"$error":"#N/A"}},{"$f":"'別紙1-2'!B13","v":{"$error":"#N/A"}},"別紙１－２の\nとおり"]
[]
[null,"　令和８年度乳幼児子育て応援事業の実施にかかる収支決算については、上記のとおり"]
[null,"相違はありません。"]
[]
[null,null,null,null,null,{"$f":"請求書!G16","v":"2027-04-10"}]
[]
[null,{"$f":"IF(入力用シート!$D$17=\"ある\",入力用シート!$D$20,入力用シート!$D$9)","v":0},{"$f":"IF(入力用シート!D22=\"ある\",入力用シート!D27,入力用シート!D16)","v":0},{"$f":"IF(入力用シート!E22=\"ある\",入力用シート!E27,入力用シート!E16)","v":0},{"$f":"IF(入力用シート!F22=\"ある\",入力用シート!F27,入力用シート!F16)","v":0},{"$f":"IF(入力用シート!G22=\"ある\",入力用シート!G27,入力用シート!G16)","v":0}]
[null,null,null,null,{"$f":"IF(入力用シート!$D$17=\"ある\",入力用シート!$D$21,入力用シート!$D$10)","v":0},{"$f":"IF(入力用シート!$D$17=\"ある\",入力用シート!$D$22,入力用シート!$D$11)","v":0}]

{"sheet":"別紙1-2","index":4,"n_rows":29,"n_cols":16,"rows_kept":29,"cut":false,"hidden":false,"merged":[[18,3,18,7],[19,3,19,7],[20,3,20,7],[21,3,21,7],[22,3,22,7],[3,0,3,7],[15,3,15,7],[28,0,28,7],[10,0,11,0],[8,3,8,7],[11,3,11,7],[12,3,12,7],[26,3,26,7],[25,3,25,7],[16,3,16,7],[8,1,8,2],[15,1,15,2],[17,3,17,7],[5,4,5,7],[24,3,24,7],[23,3,23,7]]}
["・黄色セルに入力してください"]
[]
["（別紙１－２）",null,null,null,null,null,"実施施設番号：",{"$f":"入力用シート!D5","v":0}]
["箇所別明細書（令和８年度乳幼児子育て応援事業）"]
[]
["法人名: ",{"$f":"IF(入力用シート!$D$17=\"ある\",入力用シート!$D$20,入力用シート!$D$9)","v":0},null,"施設名：",{"$f":"IF(入力用シート!$D$17=\"ある\",入力用シート!$D$19,入力用シート!$D$8)","v":0}]
[]
["（収入）"]
["科　目","金　 額",null,"内　 訳",null,null,null,null,null,null,null,null,null,null,"実施回数","金額"]
["委託料",{"$f":"VLOOKUP(F10,O10:P13,2,FALSE)","v":{"$error":"#N/A"}},"円","委託料","実施回数",null,"回",null,null,null,null,null,null,null,48,595000]
["その他収入",0,"円","参加費　＠","　    ","円　×",null,"名",null,null,null,null,null,null,96,1190000]
[null,0,"円","施設補てん",null,null,null,null,null,null,null,null,null,null,"48税込",655000]
["合　計",{"$f":"SUM(B10:B12)","v":{"$error":"#N/A"}},"円",null,null,null,null,null,null,null,null,null,null,null,"96税込",1310000]
[]
["（支出）"]
["科　目","金　 額",null,"内 　訳"]
["賃　金",0,"円","加配保育士賃金"]
["消耗品費",0,"円"]
["光熱水費",null,"円"]
["印刷製本費",0,"円"]
["食料費",0,"円"]
["通信運搬費",0,"円"]
["講師旅費　　及び謝金",0,"円"]
["使用料　　　及び賃借料",0,"円"]
["備品購入費",0,"円"]
["その他経費",0,"円"]
["合計",{"$f":"SUM(B17:B26)","v":0},"円"]
["収入合計－支出合計",{"$f":"B13-B27","v":{"$error":"#N/A"}}]
["(参考)保育材料の内、製作材料等の消耗品に該当するものは消耗品費に区分してください。\n主に本事業以外で使用した備品は対象となりません。"]

{"sheet":"別紙2","index":5,"n_rows":227,"n_cols":14,"rows_kept":227,"cut":false,"hidden":false,"merged":[[40,1,40,4],[40,9,40,11],[8,7,8,12],[8,13,9,13],[9,1,9,4],[38,0,38,13],[39,0,39,5],[39,6,40,6],[39,7,39,12],[39,13,40,13],[34,0,34,4],[34,7,34,11],[35,0,35,4],[35,7,35,11],[37,0,37,13],[9,8,9,11],[70,1,70,13],[71,1,71,13],[65,0,65,4],[65,7,65,11],[66,0,66,4],[66,7,66,11],[68,1,68,13],[69,1,69,13],[4,7,4,10],[2,0,2,13],[3,0,3,13],[4,0,4,4],[5,0,5,4],[4,5,4,6],[4,11,4,13],[5,7,5,13],[5,5,5,6],[6,0,6,4],[6,5,6,13],[7,0,7,4],[7,5,7,13],[8,0,8,5],[8,6,9,6],[101,0,101,4],[101,7,101,11],[102,0,102,4],[102,7,102,11],[73,0,73,13],[74,0,74,13],[75,0,75,5],[75,6,76,6],[75,7,75,12],[75,13,76,13],[76,1,76,4],[76,9,76,11],[132,0,132,4],[132,7,132,11],[133,0,133,4],[133,7,133,11],[105,0,105,13],[106,0,106,5],[106,6,107,6],[106,7,106,12],[106,13,107,13],[107,1,107,4],[107,9,107,11],[136,0,136,13],[137,0,137,5],[137,6,138,6],[137,7,137,12],[137,13,138,13],[138,1,138,4],[138,9,138,11],[169,9,169,11],[163,0,163,4],[163,7,163,11],[164,0,164,4],[164,7,164,11],[226,0,226,4],[226,7,226,11],[198,0,198,13],[199,0,199,5],[199,6,200,6],[199,7,199,12],[199,13,200,13],[200,1,200,4],[200,9,200,11],[197,0,197,13],[166,0,166,13],[135,0,135,13],[104,0,104,13],[225,0,225,4],[225,7,225,11],[194,0,194,4],[194,7,194,11],[195,0,195,4],[195,7,195,11],[167,0,167,13],[168,0,168,5],[168,6,169,6],[168,7,168,12],[168,13,169,13],[169,1,169,4]]}
["・黄色い部分を入力してください。"]
[null,null,null,null,null,null,null,null,null,null,null,null,null,{"$f":"入力用シート!$D$5&\"-1\"","v":"-1"}]
["（別紙２）"]
["乳幼児子育て応援事業実施状況（施設別）"]
["法人名",null,null,null,null,{"$f":"IF(入力用シート!$D$17=\"ある\",入力用シート!$D$20,入力用シート!$D$9)","v":0},{"$f":"IF(入力用シート!$D$17=\"ある\",入力用シート!$D$20,入力用シート!$D$9)","v":0},"施設名",null,null,null,{"$f":"IF(入力用シート!$D$17=\"ある\",入力用シート!$D$19,入力用シート!$D$8)","v":0}]
["利用者負担金",null,null,null,null,null,null,"有りの場合：１人あたり（　　　　　　）円　※１"]
["開設日",null,null,null,null,"　毎週（　　）曜日　・　毎月（　　）回　　　　　　　　　　　　　　　　　※２"]
["開設時間帯",null,null,null,null,"　　　　　：　　　～　　　：　　"]
["開催状況",null,null,null,null,null,"体験活動事業内容\n（該当番号を記載）\n①子育て相談\n②親子遊び\n③体験保育\n④保護者研修\n⑤読み聞かせ\n⑥園庭開放　　　　　\n⑦児童別室預かり　　　　\n⑧その他（ 　    　   　）","開催状況",null,null,null,null,null,"体験活動事業内容\n（該当番号を記載）\n①子育て相談\n②親子遊び\n③体験保育\n④保護者研修\n⑤読み聞かせ\n⑥園庭開放　　　　　\n⑦児童別室預かり　　　\n⑧その他（ 　    　   　）"]
["回数","開催日",null,null,null,"参加\n人数\n※３",null,"回数","開催日",null,null,null,"参加\n人数"]
[1,null,"月",null,"日",null,null,25,null,"月",null,"日"]
[2,null,"月",null,"日",null,null,26,null,"月",null,"日"]
[3,null,"月",null,"日",null,null,27,null,"月",null,"日"]
[4,null,"月",null,"日",null,null,28,null,"月",null,"日"]
[5,null,"月",null,"日",null,null,29,null,"月",null,"日"]
[6,null,"月",null,"日",null,null,30,null,"月",null,"日"]
[7,null,"月",null,"日",null,null,31,null,"月",null,"日"]
[8,null,"月",null,"日",null,null,32,null,"月",null,"日"]
[9,null,"月",null,"日",null,null,33,null,"月",null,"日"]
[10,null,"月",null,"日",null,null,34,null,"月",null,"日"]
[11,null,"月",null,"日",null,null,35,null,"月",null,"日"]
[12,null,"月",null,"日",null,null,36,null,"月",null,"日"]
[13,null,"月",null,"日",null,null,37,null,"月",null,"日"]
[14,null,"月",null,"日",null,null,38,null,"月",null,"日"]
[15,null,"月",null,"日",null,null,39,null,"月",null,"日"]
[16,null,"月",null,"日",null,null,40,null,"月",null,"日"]
[17,null,"月",null,"日",null,null,41,null,"月",null,"日"]
[18,null,"月",null,"日",null,null,42,null,"月",null,"日"]
[19,null,"月",null,"日",null,null,43,null,"月",null,"日"]
[20,null,"月",null,"日",null,null,44,null,"月",null,"日"]
[21,null,"月",null,"日",null,null,45,null,"月",null,"日"]
[22,null,"月",null,"日",null,null,46,null,"月",null,"日"]
[23,null,"月",null,"日",null,null,47,null,"月",null,"日"]
[24,null,"月",null,"日",null,null,48,null,"月",null,"日"]
["①小計(1～24回目)",null,null,null,null,{"$f":"SUM(F11:F34)","v":0},null,"②小計(25～48回目)",null,null,null,null,{"$f":"SUM(M11:M34)","v":0}]
[null,null,null,null,null,null,null,"①＋②合計(1～48回目)",null,null,null,null,{"$f":"SUM(F35+M35)","v":0}]
[null,null,null,null,null,null,null,null,null,null,null,null,null,{"$f":"入力用シート!$D$5&\"-2\"","v":"-2"}]
["（別紙2）"]
["乳幼児子育て応援事業実施状況（施設別）"]
["開催状況",null,null,null,null,null,"体験活動事業内容\n（該当番号を記載）\n①子育て相談\n②親子遊び\n③体験保育\n④保護者研修\n⑤読み聞かせ\n⑥園庭開放　　　　　\n⑦児童別室預かり　　　　⑧その他（ 　    　   　）","開催状況",null,null,null,null,null,"体験活動事業内容\n（該当番号を記載）\n①子育て相談\n②親子遊び\n③体験保育\n④保護者研修\n⑤読み聞かせ\n⑥園庭開放　　　　　\n⑦児童別室預かり　　　　\n⑧その他（ 　    　   　）"]
["回数","開催日",null,null,null,"参加\n人数",null,"回数",null,"開催日",null,null,"参加\n人数"]
[49,null,"月",null,"日",null,null,73,null,"月",null,"日"]
[50,null,"月",null,"日",null,null,74,null,"月",null,"日"]
[51,null,"月",null,"日",null,null,75,null,"月",null,"日"]
[52,null,"月",null,"日",null,null,76,null,"月",null,"日"]
[53,null,"月",null,"日",null,null,77,null,"月",null,"日"]
[54,null,"月",null,"日",null,null,78,null,"月",null,"日"]
[55,null,"月",null,"日",null,null,79,null,"月",null,"日"]
[56,null,"月",null,"日",null,null,80,null,"月",null,"日"]
[57,null,"月",null,"日",null,null,81,null,"月",null,"日"]
[58,null,"月",null,"日",null,null,82,null,"月",null,"日"]
[59,null,"月",null,"日",null,null,83,null,"月",null,"日"]
[60,null,"月",null,"日",null,null,84,null,"月",null,"日"]
[61,null,"月",null,"日",null,null,85,null,"月",null,"日"]
[62,null,"月",null,"日",null,null,86,null,"月",null,"日"]
[63,null,"月",null,"日",null,null,87,null,"月",null,"日"]
[64,null,"月",null,"日",null,null,88,null,"月",null,"日"]
[65,null,"月",null,"日",null,null,89,null,"月",null,"日"]
[66,null,"月",null,"日",null,null,90,null,"月",null,"日"]
[67,null,"月",null,"日",null,null,91,null,"月",null,"日"]
[68,null,"月",null,"日",null,null,92,null,"月",null,"日"]
[69,null,"月",null,"日",null,null,93,null,"月",null,"日"]
[70,null,"月",null,"日",null,null,94,null,"月",null,"日"]
[71,null,"月",null,"日",null,null,95,null,"月",null,"日"]
[72,null,"月",null,"日",null,null,96,null,"月",null,"日"]
["③小計(49～72回目)",null,null,null,null,{"$f":"SUM(F42:F65)","v":0},null,"④小計(73～96回目)",null,null,null,null,{"$f":"SUM(M42:M65)","v":0}]
[null,null,null,null,null,null,null,"参加人数合計\n①＋②＋③＋④",null,null,null,null,{"$f":"SUM(F35+M35+F66+M66)","v":0}]
[]
["※１","利用者負担金の欄については、１、２のいずれかに✓をつけて下さい。\n金額欄については、事業内容により異なる場合は、１人当たり徴収した最高額を記入してください。"]
["※２","開設日の欄については、週単位で計画されている場合には毎週○、○曜日と、月単位で計画されている場合には、毎月○回と記入してください。"]
["※３","参加人数の欄については、参加した保護者、児童の総数を記入して下さい。（保護者を対象とした講座等で、保護者が受講している間、その児童を別室で預かっていた場合は、その児童数も参加人数に加えて下さい。）"]
["※４","実施回数が９７回以上になる場合は、適宜、下の表を使用し、印刷範囲設定を広げてください（青い線を下にドラッグしてください）。"]
[null,null,null,null,null,null,null,null,null,null,null,null,null,{"$f":"入力用シート!$D$5&\"-3\"","v":"-3"}]
["（別紙2）"]
["乳幼児子育て応援事業実施状況（施設別）"]
["開催状況",null,null,null,null,null,"体験活動事業内容\n（該当番号を記載）\n①子育て相談\n②親子遊び\n③体験保育\n④保護者研修\n⑤読み聞かせ\n⑥園庭開放　　　　　\n⑦児童別室預かり　　　　⑧その他（ 　    　   　）","開催状況",null,null,null,null,null,"体験活動事業内容\n（該当番号を記載）\n①子育て相談\n②親子遊び\n③体験保育\n④保護者研修\n⑤読み聞かせ\n⑥園庭開放　　　　　\n⑦児童別室預かり　　　　\n⑧その他（ 　    　   　）"]
["回数","開催日",null,null,null,"参加\n人数",null,"回数",null,"開催日",null,null,"参加\n人数"]
[97,null,"月",null,"日",null,null,121,null,"月",null,"日"]
[98,null,"月",null,"日",null,null,122,null,"月",null,"日"]
[99,null,"月",null,"日",null,null,123,null,"月",null,"日"]
[100,null,"月",null,"日",null,null,124,null,"月",null,"日"]
[101,null,"月",null,"日",null,null,125,null,"月",null,"日"]
[102,null,"月",null,"日",null,null,126,null,"月",null,"日"]
[103,null,"月",null,"日",null,null,127,null,"月",null,"日"]
[104,null,"月",null,"日",null,null,128,null,"月",null,"日"]
[105,null,"月",null,"日",null,null,129,null,"月",null,"日"]
[106,null,"月",null,"日",null,null,130,null,"月",null,"日"]
[107,null,"月",null,"日",null,null,131,null,"月",null,"日"]
[108,null,"月",null,"日",null,null,132,null,"月",null,"日"]
[109,null,"月",null,"日",null,null,133,null,"月",null,"日"]
[110,null,"月",null,"日",null,null,134,null,"月",null,"日"]
[111,null,"月",null,"日",null,null,135,null,"月",null,"日"]
[112,null,"月",null,"日",null,null,136,null,"月",null,"日"]
[113,null,"月",null,"日",null,null,137,null,"月",null,"日"]
[114,null,"月",null,"日",null,null,138,null,"月",null,"日"]
[115,null,"月",null,"日",null,null,139,null,"月",null,"日"]
[116,null,"月",null,"日",null,null,140,null,"月",null,"日"]
[117,null,"月",null,"日",null,null,141,null,"月",null,"日"]
[118,null,"月",null,"日",null,null,142,null,"月",null,"日"]
[119,null,"月",null,"日",null,null,143,null,"月",null,"日"]
[120,null,"月",null,"日",null,null,144,null,"月",null,"日"]
["⑤小計(97～120回目)",null,null,null,null,{"$f":"SUM(F78:F101)","v":0},null,"⑥小計(121～144回目)",null,null,null,null,{"$f":"SUM(M78:M101)","v":0}]
[null,null,null,null,null,null,null,"参加人数合計\n①～⑥",null,null,null,null,{"$f":"SUM(F35+M35+F66+M66+F102+M102)","v":0}]
[null,null,null,null,null,null,null,null,null,null,null,null,null,{"$f":"入力用シート!$D$5&\"-4\"","v":"-4"}]
["（別紙2）"]
["乳幼児子育て応援事業実施状況（施設別）"]
["開催状況",null,null,null,null,null,"体験活動事業内容\n（該当番号を記載）\n①子育て相談\n②親子遊び\n③体験保育\n④保護者研修\n⑤読み聞かせ\n⑥園庭開放　　　　　\n⑦児童別室預かり　　　　⑧その他（ 　    　   　）","開催状況",null,null,null,null,null,"体験活動事業内容\n（該当番号を記載）\n①子育て相談\n②親子遊び\n③体験保育\n④保護者研修\n⑤読み聞かせ\n⑥園庭開放　　　　　\n⑦児童別室預かり　　　　\n⑧その他（ 　    　   　）"]
["回数","開催日",null,null,null,"参加\n人数",null,"回数",null,"開催日",null,null,"参加\n人数"]
[145,null,"月",null,"日",null,null,169,null,"月",null,"日"]
[146,null,"月",null,"日",null,null,170,null,"月",null,"日"]
[147,null,"月",null,"日",null,null,171,null,"月",null,"日"]
[148,null,"月",null,"日",null,null,172,null,"月",null,"日"]
[149,null,"月",null,"日",null,null,173,null,"月",null,"日"]
[150,null,"月",null,"日",null,null,174,null,"月",null,"日"]
[151,null,"月",null,"日",null,null,175,null,"月",null,"日"]
[152,null,"月",null,"日",null,null,176,null,"月",null,"日"]
[153,null,"月",null,"日",null,null,177,null,"月",null,"日"]
[154,null,"月",null,"日",null,null,178,null,"月",null,"日"]
[155,null,"月",null,"日",null,null,179,null,"月",null,"日"]
[156,null,"月",null,"日",null,null,180,null,"月",null,"日"]
[157,null,"月",null,"日",null,null,181,null,"月",null,"日"]
[158,null,"月",null,"日",null,null,182,null,"月",null,"日"]
[159,null,"月",null,"日",null,null,183,null,"月",null,"日"]
[160,null,"月",null,"日",null,null,184,null,"月",null,"日"]
[161,null,"月",null,"日",null,null,185,null,"月",null,"日"]
[162,null,"月",null,"日",null,null,186,null,"月",null,"日"]
[163,null,"月",null,"日",null,null,187,null,"月",null,"日"]
[164,null,"月",null,"日",null,null,188,null,"月",null,"日"]
[165,null,"月",null,"日",null,null,189,null,"月",null,"日"]
[166,null,"月",null,"日",null,null,190,null,"月",null,"日"]
[167,null,"月",null,"日",null,null,191,null,"月",null,"日"]
[168,null,"月",null,"日",null,null,192,null,"月",null,"日"]
["⑦小計(145～168回目)",null,null,null,null,{"$f":"SUM(F109:F132)","v":0},null,"⑧小計(169～192回目)",null,null,null,null,{"$f":"SUM(M109:M132)","v":0}]
[null,null,null,null,null,null,null,"参加人数合計\n①～⑧",null,null,null,null,{"$f":"SUM(F35+M35+F66+M66+F102+M102+F133+M133)","v":0}]
[null,null,null,null,null,null,null,null,null,null,null,null,null,{"$f":"入力用シート!$D$5&\"-5\"","v":"-5"}]
["（別紙2）"]
["乳幼児子育て応援事業実施状況（施設別）"]
["開催状況",null,null,null,null,null,"体験活動事業内容\n（該当番号を記載）\n①子育て相談\n②親子遊び\n③体験保育\n④保護者研修\n⑤読み聞かせ\n⑥園庭開放　　　　　\n⑦児童別室預かり　　　　⑧その他（ 　    　   　）","開催状況",null,null,null,null,null,"体験活動事業内容\n（該当番号を記載）\n①子育て相談\n②親子遊び\n③体験保育\n④保護者研修\n⑤読み聞かせ\n⑥園庭開放　　　　　\n⑦児童別室預かり　　　　\n⑧その他（ 　    　   　）"]
["回数","開催日",null,null,null,"参加\n人数",null,"回数",null,"開催日",null,null,"参加\n人数"]
[193,null,"月",null,"日",null,null,217,null,"月",null,"日"]
[194,null,"月",null,"日",null,null,218,null,"月",null,"日"]
[195,null,"月",null,"日",null,null,219,null,"月",null,"日"]
[196,null,"月",null,"日",null,null,220,null,"月",null,"日"]
[197,null,"月",null,"日",null,null,221,null,"月",null,"日"]
[198,null,"月",null,"日",null,null,222,null,"月",null,"日"]
[199,null,"月",null,"日",null,null,223,null,"月",null,"日"]
[200,null,"月",null,"日",null,null,224,null,"月",null,"日"]
[201,null,"月",null,"日",null,null,225,null,"月",null,"日"]
[202,null,"月",null,"日",null,null,226,null,"月",null,"日"]
[203,null,"月",null,"日",null,null,227,null,"月",null,"日"]
[204,null,"月",null,"日",null,null,228,null,"月",null,"日"]
[205,null,"月",null,"日",null,null,229,null,"月",null,"日"]
[206,null,"月",null,"日",null,null,230,null,"月",null,"日"]
[207,null,"月",null,"日",null,null,231,null,"月",null,"日"]
[208,null,"月",null,"日",null,null,232,null,"月",null,"日"]
[209,null,"月",null,"日",null,null,233,null,"月",null,"日"]
[210,null,"月",null,"日",null,null,234,null,"月",null,"日"]
[211,null,"月",null,"日",null,null,235,null,"月",null,"日"]
[212,null,"月",null,"日",null,null,236,null,"月",null,"日"]
[213,null,"月",null,"日",null,null,237,null,"月",null,"日"]
[214,null,"月",null,"日",null,null,238,null,"月",null,"日"]
[215,null,"月",null,"日",null,null,239,null,"月",null,"日"]
[216,null,"月",null,"日",null,null,240,null,"月",null,"日"]
["⑨小計(193～216回目)",null,null,null,null,{"$f":"SUM(F140:F163)","v":0},null,"⑩小計(217～240回目)",null,null,null,null,{"$f":"SUM(M140:M163)","v":0}]
[null,null,null,null,null,null,null,"参加人数合計\n①～⑩",null,null,null,null,{"$f":"SUM(F35+M35+F66+M66+F102+M102+F133+M133+F164+M164)","v":0}]
[null,null,null,null,null,null,null,null,null,null,null,null,null,{"$f":"入力用シート!$D$5&\"-6\"","v":"-6"}]
["（別紙2）"]
["乳幼児子育て応援事業実施状況（施設別）"]
["開催状況",null,null,null,null,null,"体験活動事業内容\n（該当番号を記載）\n①子育て相談\n②親子遊び\n③体験保育\n④保護者研修\n⑤読み聞かせ\n⑥園庭開放　　　　　\n⑦児童別室預かり　　　　⑧その他（ 　    　   　）","開催状況",null,null,null,null,null,"体験活動事業内容\n（該当番号を記載）\n①子育て相談\n②親子遊び\n③体験保育\n④保護者研修\n⑤読み聞かせ\n⑥園庭開放　　　　　\n⑦児童別室預かり　　　　\n⑧その他（ 　    　   　）"]
["回数","開催日",null,null,null,"参加\n人数",null,"回数",null,"開催日",null,null,"参加\n人数"]
[241,null,"月",null,"日",null,null,265,null,"月",null,"日"]
[242,null,"月",null,"日",null,null,266,null,"月",null,"日"]
[243,null,"月",null,"日",null,null,267,null,"月",null,"日"]
[244,null,"月",null,"日",null,null,268,null,"月",null,"日"]
[245,null,"月",null,"日",null,null,269,null,"月",null,"日"]
[246,null,"月",null,"日",null,null,270,null,"月",null,"日"]
[247,null,"月",null,"日",null,null,271,null,"月",null,"日"]
[248,null,"月",null,"日",null,null,272,null,"月",null,"日"]
[249,null,"月",null,"日",null,null,273,null,"月",null,"日"]
[250,null,"月",null,"日",null,null,274,null,"月",null,"日"]
[251,null,"月",null,"日",null,null,275,null,"月",null,"日"]
[252,null,"月",null,"日",null,null,276,null,"月",null,"日"]
[253,null,"月",null,"日",null,null,277,null,"月",null,"日"]
[254,null,"月",null,"日",null,null,278,null,"月",null,"日"]
[255,null,"月",null,"日",null,null,279,null,"月",null,"日"]
[256,null,"月",null,"日",null,null,280,null,"月",null,"日"]
[257,null,"月",null,"日",null,null,281,null,"月",null,"日"]
[258,null,"月",null,"日",null,null,282,null,"月",null,"日"]
[259,null,"月",null,"日",null,null,283,null,"月",null,"日"]
[260,null,"月",null,"日",null,null,284,null,"月",null,"日"]
[261,null,"月",null,"日",null,null,285,null,"月",null,"日"]
[262,null,"月",null,"日",null,null,286,null,"月",null,"日"]
[263,null,"月",null,"日",null,null,287,null,"月",null,"日"]
[264,null,"月",null,"日",null,null,288,null,"月",null,"日"]
["⑪小計(241～264回目)",null,null,null,null,{"$f":"SUM(F171:F194)","v":0},null,"⑫小計(265～288回目)",null,null,null,null,{"$f":"SUM(M171:M194)","v":0}]
[null,null,null,null,null,null,null,"参加人数合計\n①～⑫",null,null,null,null,{"$f":"SUM(F35+M35+F66+M66+F102+M102+F133+M133+F164+M164+F195+M195)","v":0}]
[null,null,null,null,null,null,null,null,null,null,null,null,null,{"$f":"入力用シート!$D$5&\"-7\"","v":"-7"}]
["（別紙2）"]
["乳幼児子育て応援事業実施状況（施設別）"]
["開催状況",null,null,null,null,null,"体験活動事業内容\n（該当番号を記載）\n①子育て相談\n②親子遊び\n③体験保育\n④保護者研修\n⑤読み聞かせ\n⑥園庭開放　　　　　\n⑦児童別室預かり　　　　⑧その他（ 　    　   　）","開催状況",null,null,null,null,null,"体験活動事業内容\n（該当番号を記載）\n①子育て相談\n②親子遊び\n③体験保育\n④保護者研修\n⑤読み聞かせ\n⑥園庭開放　　　　　\n⑦児童別室預かり　　　　\n⑧その他（ 　    　   　）"]
["回数","開催日",null,null,null,"参加\n人数",null,"回数",null,"開催日",null,null,"参加\n人数"]
[289,null,"月",null,"日",null,null,313,null,"月",null,"日"]
[290,null,"月",null,"日",null,null,314,null,"月",null,"日"]
[291,null,"月",null,"日",null,null,315,null,"月",null,"日"]
[292,null,"月",null,"日",null,null,316,null,"月",null,"日"]
[293,null,"月",null,"日",null,null,317,null,"月",null,"日"]
[294,null,"月",null,"日",null,null,318,null,"月",null,"日"]
[295,null,"月",null,"日",null,null,319,null,"月",null,"日"]
[296,null,"月",null,"日",null,null,320,null,"月",null,"日"]
[297,null,"月",null,"日",null,null,321,null,"月",null,"日"]
[298,null,"月",null,"日",null,null,322,null,"月",null,"日"]
[299,null,"月",null,"日",null,null,323,null,"月",null,"日"]
[300,null,"月",null,"日",null,null,324,null,"月",null,"日"]
[301,null,"月",null,"日",null,null,325,null,"月",null,"日"]
[302,null,"月",null,"日",null,null,326,null,"月",null,"日"]
[303,null,"月",null,"日",null,null,327,null,"月",null,"日"]
[304,null,"月",null,"日",null,null,328,null,"月",null,"日"]
[305,null,"月",null,"日",null,null,329,null,"月",null,"日"]
[306,null,"月",null,"日",null,null,330,null,"月",null,"日"]
[307,null,"月",null,"日",null,null,331,null,"月",null,"日"]
[308,null,"月",null,"日",null,null,332,null,"月",null,"日"]
[309,null,"月",null,"日",null,null,333,null,"月",null,"日"]
[310,null,"月",null,"日",null,null,334,null,"月",null,"日"]
[311,null,"月",null,"日",null,null,335,null,"月",null,"日"]
[312,null,"月",null,"日",null,null,336,null,"月",null,"日"]
["⑬小計(289～312回目)",null,null,null,null,{"$f":"SUM(F202:F225)","v":0},null,"⑭小計(313～336回目)",null,null,null,null,{"$f":"SUM(M202:M225)","v":0}]
[null,null,null,null,null,null,null,"参加人数合計\n①～⑭",null,null,null,null,{"$f":"SUM(F35+M35+F66+M66+F102+M102+F133+M133+F164+M164+F195+M195+F226+M226)","v":0}]

{"sheet":"集計用（確認不要）","index":6,"n_rows":2,"n_cols":20,"rows_kept":2,"cut":false,"hidden":false,"merged":[]}
["実施施設番号","施設名称","担当者\nメールアドレス","実施回数","参加人数","委託料","その他収入","収入合計","賃金","消耗品費","光熱水費","印刷製本費","食料費","通信運搬費","講師旅費\n及び謝金","使用料　　　　　　　　及び賃借料","備品購入費","その他\n経費","支出合計","情報の修正の\n有無"]
[{"$f":"入力用シート!D5","v":0},{"$f":"IF(入力用シート!$D$17=\"ある\",入力用シート!$D$19,入力用シート!$D$8)","v":0},{"$f":"入力用シート!G31","v":0},{"$f":"'別紙1-2'!F10","v":0},{"$f":"'別紙1-2'!G11","v":0},{"$f":"'別紙1-2'!B10","v":{"$error":"#N/A"}},{"$f":"'別紙1-2'!B11+'別紙1-2'!B12","v":0},{"$f":"'別紙1-2'!B13","v":{"$error":"#N/A"}},{"$f":"'別紙1-2'!B17","v":0},{"$f":"'別紙1-2'!B18","v":0},{"$f":"'別紙1-2'!B19","v":0},{"$f":"'別紙1-2'!B20","v":0},{"$f":"'別紙1-2'!B21","v":0},{"$f":"'別紙1-2'!B22","v":0},{"$f":"'別紙1-2'!B23","v":0},{"$f":"'別紙1-2'!B24","v":0},{"$f":"'別紙1-2'!B25","v":0},{"$f":"'別紙1-2'!B26","v":0},{"$f":"'別紙1-2'!B27","v":0},{"$f":"入力用シート!D17","v":0}]